Workbook

Sheet Instructions
A1: Project Name: | C1: Reclaim Model - Overview of Program
B2: Blank | C2: All users are urged to read the Reclaim Model User Manual - Scroll down for overview description of program.
C3: Important! Reclaim 7.0 works better with no other excel files open.
C4: If other excel files are open ignore run time error and proceed
A5: Reclaim Menu | C5: The default Excel menu bar has an additional tab labelled "Add-Ins" that provides options specific to the Reclaim Model.
B6: Clear | C6: This option deletes all input data, deletes any duplicated elements and blanks out the project name. It also allows for segregation into land costs vs water costs if required.
B7: Duplicate | C7: This option Duplicates components of the project. E.g. if there is more than one Open Pit, use duplicate to add a second Open Pit. Quantities for the new Open Pit are erased, but the Activities and Cost Codes are carried over from the original Open Pit. The new Open Pit subtotal is added to the Summary page.
B8: Unit Costs | C8: This option opens a window of unit costs to provide easy reference. NOTE: the unit cost table has a filter in the 'UNITS' column. You can select to only see a particular unit (eg km) or multiple units (km and m3) or all units.
B9: Print All | C9: This option prints the Summary Worksheet, Unit Cost Worksheet, and the individual component worksheets having non-zero balances. Individual worksheets can be printed directly using standard printing methods, such as Ctl - P.
B10: Quit | C10: Select Quit to exit the program
B11: Help | C11: Redirects user to Instructions worksheet.
A13: WorkSheets
B14: Summary | C14: This worksheet contains a cumulative summary of costs for each component of the project. Associated costs such as engineering and project management are added as a percentage of the component costs.
B15: Components | C15: Costs are derived for individual closure and reclamation activities by multiplying a "quantity" of activity by a "unit cost". An activity can be edited, added, or deleted from worksheet. However, care should be taken not to modify cells that are defined and used elsewhere in the program.
C16: Do not change the content or column width of the first column of each component worksheet.
B17: Unit Costs | C17: This worksheet contains a look up table with costs for typical work associated with each closure and reclamation activity
A19: Limitations | C19: The Reclaim Program will NOT work if the worksheets are changed such that the following requirements are not met. Please review the following prior to modifiying worksheets.
B20: WorkSheet Names | C20: The names of the worksheets must not be changed.
B21: Defined Names | C21: Certain cells have defined names, which must not be changed. Where the cell is named, the name will appear in the "Name Box" to the left of the formula bar.
B22: First line of data | C22: The first line of data for any component worksheet starts on line 4. Do not change the first line of a component worksheet, ie the component name.
B23: Cell A1 | C23: Cell A1 on the component sheet MUST always contain the count of that component for the duplicate function to operate. DO NOT CHANGE.
B24: Adding Lines | C24: You can add lines to components and the unit cost table, as long as they are not the last lines. The last line might fall outside the named ranges. You can check the size of the named range by selecting the name from the drop down box at the top left of the sheet. Usually this box has a cell reference, or a name.
B25: Printing | C25: A component will only be printed if its sub-total is greater than zero. In addition, a component and the summary sheet cannot be printed if there is an error. Printing has been set to print 1 page per component.
A27: Conditions of Use | C27: The Reclamation Cost Estimating Model was prepared to serve as a guide for Government Agencies, mining companies, and others to estimate the cost of mine reclamation. This model is not intended to replace reclamation planning or to be used to determine the activities required to reclaim a site or to dictate how much should be spent on reclamation.
C29: Reclaim was prepared by Brodie Consulting Ltd. on behalf of AANDC. AANDC and Brodie Consulting Ltd. are not responsible for the completeness or accuracy of any reclamation estimate made using this model. The user agrees to check and take responsibility for all aspects of any cost estimate made using this model.

Sheet Summary
B1: SUMMARY OF COSTS
A3: CAPITAL COSTS | B3: COMPONENT NAME | D3: COST | F3: LAND LIABILITY | H3: WATER LIABILITY
A4: WELLS AND FACILITIES | B4: =IF(ISBLANK('Wells & Facilities'!$C$1),"",'Wells & Facilities'!$C$1) ->  | D4: =RP1Total -> 0 | F4: =RP1LandTotal -> 0 | H4: =RP1WaterTotal -> 0
A5: BUILDINGS AND EQUIPMENT | B5: =IF(ISBLANK('Bldgs & Equip'!$C$1),"",'Bldgs & Equip'!$C$1) ->  | D5: =Bldg1Total -> 1500.0001 | F5: =Bldg1LandTotal -> 1500 | H5: =Bldg1WaterTotal -> 0
A6: CHEMICALS AND CONTAMINATED SOIL MANAGEMENT | D6: =Chem1Total -> 121000.0001 | F6: =Chem1LandTotal -> 90875 | H6: =Chem1WaterTotal -> 30125
A7: SURFACE AND GROUNDWATER MANAGEMENT | B7: =IF(ISBLANK('Water Treatment'!$C$1),"",'Water Treatment'!$C$1) ->  | D7: =Water1Total -> 15940.4002 | F7: - | H7: =Water1Total -> 15940.4002
A8: INTERIM CARE AND MAINTENANCE | B8: =IF(ISBLANK(ICM!$C$1),"",ICM!$C$1) ->  | D8: =ICMTotal -> 12350.0001 | F8: - | H8: =ICMTotal -> 12350.0001
B9: SUBTOTAL: Capital Costs | D9: =SUM(D4:D8) -> 150790.4005 | F9: =SUM(F4:F8) -> 92375 | H9: =SUM(H4:H8) -> 58415.4003
B10: PERCENT OF SUBTOTAL | F10: =IF(F9<0.01,0,F9/D9) -> 0.6126053097 | H10: =IF(H9<0.01,0,H9/D9) -> 0.387394689
A12: INDIRECT COSTS | D12: COST | F12: LAND LIABILITY | H12: WATER LIABILITY
A13: MOBILIZATION/DEMOBILIZATION | B13: =IF(ISBLANK(Mobilization!$C$1),"",Mobilization!$C$1) ->  | D13: =MobTotal -> 0.0001 | F13: =D13*$F$10 -> 6.126053097e-05 | H13: =D13*$H$10 -> 3.87394689e-05
A14: POST-CLOSURE MONITORING AND MAINTENANCE | B14: =IF(ISBLANK(PostClosure!$C$1),"",PostClosure!$C$1) ->  | D14: =PC1Total -> 0 | F14: =D14*$F$10 -> 0 | H14: =D14*$H$10 -> 0
A15: ENGINEERING | B15: 0.05 | D15: =B15*$D$9 -> 7539.520025 | F15: =+$F$10*D15 -> 4618.75 | H15: =+$H$10*D15 -> 2920.770015
A16: PROJECT MANAGEMENT | B16: 0.05 | D16: 7539.520025 | F16: 4618.75 | H16: 2920.770015
A17: HEALTH AND SAFETY PLANS/MONITORING & QA/QC | D17: 0 | F17: 0 | H17: 0
A18: BONDING/INSURANCE | D18: 0 | F18: 0 | H18: 0
A19: CONTINGENCY | B19: 0.2 | D19: 30158.0801 | F19: 18475 | H19: 11683.08006
A20: MARKET PRICE FACTOR ADJUSTMENT | D20: 0 | F20: 0 | H20: 0
B21: SUBTOTAL: Indirect Costs | D21: =SUM(D13:D20) -> 45237.12025 | F21: =SUM(F13:F20) -> 27712.50006 | H21: =SUM(H13:H20) -> 17524.62013
A23: TOTAL COSTS | D23: =D9+D13+D14+D21 -> 196027.5209 | F23: =F9+F13+F14+F21 -> 120087.5001 | H23: =H9+H13+H14+H21 -> 75940.02047

Sheet Wells & Facilities
A1: 1 | B1: Wells and Facilities
B3: ACTIVITY/MATERIAL | C3: Notes | D3: Units | E3: Quantity | F3: Cost Code | G3: Unit Cost | H3: Cost | I3: % Land | J3: Land Cost | K3: Water Cost
B4: OBJECTIVE: ABANDONMENT OF WELLS
B5: All wells- Drilled / Cased | D5: m | F5: =NA() ->  | G5: =IF(ISNA(F5),0,INDEX(IF(UPPER(RIGHT(F5,1))=Low,UnitCostLow, IF(UPPER(RIGHT(F5,1))=High,UnitCostHigh,UnitCostSpecified)),MATCH(UPPER(LEFT(F5,LEN(F5)-1)),CostCode,0))) -> 0 | H5: =G5*E5 -> 0 | J5: =H5*I5 -> 0 | K5: =+H5*(1-I5) -> 0
B6: Sweet Well - Completed / Active / Inactive | D6: m | F6: =NA() ->  | G6: 0 | H6: 0 | J6: 0 | K6: 0
B7: Sour Well (H2S>1%) - Completed / Active / Inactive | D7: m | F7: =NA() ->  | G7: 0 | H7: 0 | J7: 0 | K7: 0
B8: Vent Flow / Gas Migration | F8: =NA() ->  | G8: 0 | H8: 0 | J8: 0 | K8: 0
B9: Additional Completion Zones | F9: =NA() ->  | G9: 0 | H9: 0 | J9: 0 | K9: 0
B10: OBJECTIVE: ABANDONMENT OF PRODUCTION FACILITIES
B11: Oil / bitumen process or injection / disposal facility | D11: m3/day | F11: =NA() ->  | G11: =IF(ISNA(F11),0,INDEX(IF(UPPER(RIGHT(F11,1))=Low,UnitCostLow, IF(UPPER(RIGHT(F11,1))=High,UnitCostHigh,UnitCostSpecified)),MATCH(UPPER(LEFT(F11,LEN(F11)-1)),CostCode,0))) -> 0 | H11: =G11*E11 -> 0 | J11: =H11*I11 -> 0 | K11: =+H11*(1-I11) -> 0
B12: Gas processing facility | D12: m3/day | F12: =NA() ->  | G12: 0 | H12: 0 | J12: 0 | K12: 0
B13: Gas dehydration facility | D13: m3/day | F13: =NA() ->  | G13: =IF(ISNA(F13),0,INDEX(IF(UPPER(RIGHT(F13,1))=Low,UnitCostLow, IF(UPPER(RIGHT(F13,1))=High,UnitCostHigh,UnitCostSpecified)),MATCH(UPPER(LEFT(F13,LEN(F13)-1)),CostCode,0))) -> 0 | H13: =G13*E13 -> 0 | J13: =H13*I13 -> 0 | K13: =+H13*(1-I13) -> 0
B14: Compressor station | D14: KW | F14: =NA() ->  | G14: 0 | H14: 0 | J14: 0 | K14: 0
B15: Battery sites | D15: m3/day | F15: =NA() ->  | G15: 0 | H15: 0 | J15: 0 | K15: 0
B16: Battery sites w/ separation, compression, injection and/or disposal equipment | D16: m3/day | F16: =NA() ->  | G16: 0 | H16: 0 | J16: 0 | K16: 0
B17: Satellite batteries | D17: m3/day | F17: =NA() ->  | G17: 0 | H17: 0 | J17: 0 | K17: 0
B18: Other stations | D18: ha | F18: =NA() ->  | G18: 0 | H18: 0 | J18: 0 | K18: 0
G19: Total | H19: 0 | J19: =SUM(J5:J18) -> 0 | K19: =SUM(K5:K18) -> 0
G20: % of Total | J20: =J19/H19*100 ->  | K20: =K19/H19*100 -> 

Sheet Bldgs & Equip
A1: 1 | B1: Building / Equip Name: | G1: Bldg / Equip #: | H1: 1
B3: ACTIVITY/MATERIAL | C3: Notes | D3: Units | E3: Quantity | F3: Cost Code | G3: Unit Cost | H3: Cost | I3: % Land | J3: Land Cost | K3: Water Cost
B4: OBJECTIVE: DISPOSE MOBILE EQUIPMENT
B5: Decontaminate and ship off-site | D5: each | F5: =NA() ->  | G5: =IF(ISNA(F5),0,INDEX(IF(UPPER(RIGHT(F5,1))=Low,UnitCostLow, IF(UPPER(RIGHT(F5,1))=High,UnitCostHigh,UnitCostSpecified)),MATCH(UPPER(LEFT(F5,LEN(F5)-1)),CostCode,0))) -> 0 | H5: =G5*E5 -> 0 | J5: =H5*I5 -> 0 | K5: =+H5*(1-I5) -> 0
B6: Decontaminate, dispose on-site | D6: each | F6: =NA() ->  | G6: =IF(ISNA(F6),0,INDEX(IF(UPPER(RIGHT(F6,1))=Low,UnitCostLow, IF(UPPER(RIGHT(F6,1))=High,UnitCostHigh,UnitCostSpecified)),MATCH(UPPER(LEFT(F6,LEN(F6)-1)),CostCode,0))) -> 0 | H6: =G6*E6 -> 0 | J6: =H6*I6 -> 0 | K6: =+H6*(1-I6) -> 0
B7: Other | D7: each | F7: =NA() ->  | G7: =IF(ISNA(F7),0,INDEX(IF(UPPER(RIGHT(F7,1))=Low,UnitCostLow, IF(UPPER(RIGHT(F7,1))=High,UnitCostHigh,UnitCostSpecified)),MATCH(UPPER(LEFT(F7,LEN(F7)-1)),CostCode,0))) -> 0 | H7: =G7*E7 -> 0 | J7: 0 | K7: 0
B8: OBJECTIVE: BUILDING DECONTAMINATION & HAZ. MATERIAL REMOVAL
B9: Decontaminate, oil, fuel and glycol systems | D9: mandays | F9: =NA() ->  | G9: =IF(ISNA(F9),0,INDEX(IF(UPPER(RIGHT(F9,1))=Low,UnitCostLow, IF(UPPER(RIGHT(F9,1))=High,UnitCostHigh,UnitCostSpecified)),MATCH(UPPER(LEFT(F9,LEN(F9)-1)),CostCode,0))) -> 0 | H9: =G9*E9 -> 0 | J9: 0 | K9: 0
B10: Decontaminate, general | D10: mandays | F10: =NA() ->  | G10: =IF(ISNA(F10),0,INDEX(IF(UPPER(RIGHT(F10,1))=Low,UnitCostLow, IF(UPPER(RIGHT(F10,1))=High,UnitCostHigh,UnitCostSpecified)),MATCH(UPPER(LEFT(F10,LEN(F10)-1)),CostCode,0))) -> 0 | H10: 0 | J10: 0 | K10: 0
B11: Mechanical | D11: mandays | F11: =NA() ->  | G11: =IF(ISNA(F11),0,INDEX(IF(UPPER(RIGHT(F11,1))=Low,UnitCostLow, IF(UPPER(RIGHT(F11,1))=High,UnitCostHigh,UnitCostSpecified)),MATCH(UPPER(LEFT(F11,LEN(F11)-1)),CostCode,0))) -> 0 | H11: 0 | J11: 0 | K11: 0
B12: Electrical | D12: mandays | F12: =NA() ->  | G12: =IF(ISNA(F12),0,INDEX(IF(UPPER(RIGHT(F12,1))=Low,UnitCostLow, IF(UPPER(RIGHT(F12,1))=High,UnitCostHigh,UnitCostSpecified)),MATCH(UPPER(LEFT(F12,LEN(F12)-1)),CostCode,0))) -> 0 | H12: 0 | J12: 0 | K12: 0
B13: Decontaminate maintenance shop | D13: each | F13: =NA() ->  | G13: =IF(ISNA(F13),0,INDEX(IF(UPPER(RIGHT(F13,1))=Low,UnitCostLow, IF(UPPER(RIGHT(F13,1))=High,UnitCostHigh,UnitCostSpecified)),MATCH(UPPER(LEFT(F13,LEN(F13)-1)),CostCode,0))) -> 0 | H13: 0 | J13: 0 | K13: 0
B14: Decontaminate power plant | D14: each | F14: =NA() ->  | G14: 0 | H14: 0 | J14: 0 | K14: 0
B15: Decontaminate bulk fuel storage | D15: each | F15: =NA() ->  | G15: 0 | H15: 0 | J15: 0 | K15: 0
B16: Deontaminate offices/warehouse/accom | D16: each | F16: =NA() ->  | G16: 0 | H16: 0 | J16: 0 | K16: 0
B17: Removal of asbestos siding on buildings | D17: each | F17: =NA() ->  | G17: 0 | H17: 0 | J17: 0 | K17: 0
B18: Removal of friable asbestos on equipment | D18: each | F18: =NA() ->  | G18: 0 | H18: 0 | J18: 0 | K18: 0
B19: Other | F19: =NA() ->  | G19: 0 | H19: 0 | J19: 0 | K19: 0
B20: OBJECTIVE: REMOVE BUILDINGS - ALL BUILDING AREAS SCALED TO ACCOUNT FOR HEIGHT
B21: Accomodation Complex | D21: m2 | F21: =NA() ->  | G21: =IF(ISNA(F21),0,INDEX(IF(UPPER(RIGHT(F21,1))=Low,UnitCostLow, IF(UPPER(RIGHT(F21,1))=High,UnitCostHigh,UnitCostSpecified)),MATCH(UPPER(LEFT(F21,LEN(F21)-1)),CostCode,0))) -> 0 | H21: =G21*E21 -> 0 | J21: 0 | K21: 0
B22: Process Facilities | D22: m2 | F22: =NA() ->  | G22: 0 | H22: 0 | J22: 0 | K22: 0
B23: Offices, Repair, Lab, Warehouse | D23: m2 | F23: =NA() ->  | G23: 0 | H23: 0 | J23: 0 | K23: 0
B24: Storage Facilites | C24: relocate shed | D24: m2 | E24: 0 | F24: BRWl | G24: 27.5 | H24: 0 | I24: 1 | J24: 0 | K24: 0
B25: Water and Wastewater Treatment Facilities | C25: relocate | D25: alloc | E25: 1 | F25: =NA() ->  | G25: 500 | H25: 500 | I25: 1 | J25: 500 | K25: 0
B26: U/G Heating Plant | D26: m2 | F26: =NA() ->  | G26: 0 | H26: 0 | J26: 0 | K26: 0
B27: Emulsion Plant | D27: m2 | F27: =NA() ->  | G27: 0 | H27: 0 | J27: 0 | K27: 0
B28: AN Storage Facility | D28: m2 | F28: =NA() ->  | G28: =IF(ISNA(F28),0,INDEX(IF(UPPER(RIGHT(F28,1))=Low,UnitCostLow, IF(UPPER(RIGHT(F28,1))=High,UnitCostHigh,UnitCostSpecified)),MATCH(UPPER(LEFT(F28,LEN(F28)-1)),CostCode,0))) -> 0 | H28: 0 | J28: =H28*I28 -> 0 | K28: =+H28*(1-I28) -> 0
B29: Warehouse, Shops and Other | D29: m2 | F29: =NA() ->  | G29: =IF(ISNA(F29),0,INDEX(IF(UPPER(RIGHT(F29,1))=Low,UnitCostLow, IF(UPPER(RIGHT(F29,1))=High,UnitCostHigh,UnitCostSpecified)),MATCH(UPPER(LEFT(F29,LEN(F29)-1)),CostCode,0))) -> 0 | H29: 0 | J29: =H29*I29 -> 0 | K29: =+H29*(1-I29) -> 0
B30: Storage Facility at Laydown/Airstrip | D30: m2 | F30: =NA() ->  | G30: =IF(ISNA(F30),0,INDEX(IF(UPPER(RIGHT(F30,1))=Low,UnitCostLow, IF(UPPER(RIGHT(F30,1))=High,UnitCostHigh,UnitCostSpecified)),MATCH(UPPER(LEFT(F30,LEN(F30)-1)),CostCode,0))) -> 0 | H30: 0 | J30: =H30*I30 -> 0 | K30: =+H30*(1-I30) -> 0
B31: Fuel tanks | D31: m2 | F31: =NA() ->  | G31: =IF(ISNA(F31),0,INDEX(IF(UPPER(RIGHT(F31,1))=Low,UnitCostLow, IF(UPPER(RIGHT(F31,1))=High,UnitCostHigh,UnitCostSpecified)),MATCH(UPPER(LEFT(F31,LEN(F31)-1)),CostCode,0))) -> 0 | H31: 0 | J31: =H31*I31 -> 0 | K31: =+H31*(1-I31) -> 0
B32: Fuel Tanks | D32: m2 | F32: =NA() ->  | G32: =IF(ISNA(F32),0,INDEX(IF(UPPER(RIGHT(F32,1))=Low,UnitCostLow, IF(UPPER(RIGHT(F32,1))=High,UnitCostHigh,UnitCostSpecified)),MATCH(UPPER(LEFT(F32,LEN(F32)-1)),CostCode,0))) -> 0 | H32: 0 | J32: =H32*I32 -> 0 | K32: =+H32*(1-I32) -> 0
B33: Freshwater intake | D33: m2 | F33: =NA() ->  | G33: 0 | H33: 0 | J33: 0 | K33: 0
B34: Reclaim pumps | D34: m2 | F34: =NA() ->  | G34: 0 | H34: 0 | J34: 0 | K34: 0
B35: Outfall & Diffuser | D35: m2 | F35: =NA() ->  | G35: 0 | H35: 0 | J35: 0 | K35: 0
B36: Airstrip lighting, navigation, electrician | D36: mandays | F36: =NA() ->  | G36: =IF(ISNA(F36),0,INDEX(IF(UPPER(RIGHT(F36,1))=Low,UnitCostLow, IF(UPPER(RIGHT(F36,1))=High,UnitCostHigh,UnitCostSpecified)),MATCH(UPPER(LEFT(F36,LEN(F36)-1)),CostCode,0))) -> 0 | H36: 0 | J36: 0 | K36: 0
B37: Airstrip lighting, navigation, mechanical | D37: mandays | F37: =NA() ->  | G37: =IF(ISNA(F37),0,INDEX(IF(UPPER(RIGHT(F37,1))=Low,UnitCostLow, IF(UPPER(RIGHT(F37,1))=High,UnitCostHigh,UnitCostSpecified)),MATCH(UPPER(LEFT(F37,LEN(F37)-1)),CostCode,0))) -> 0 | H37: 0 | J37: 0 | K37: 0
B38: Consolidate & dump boneyard debris | D38: m3 | F38: =NA() ->  | G38: 0 | H38: 0 | J38: 0 | K38: 0
B39: other - storage tanks | C39: assumed 2 required - clean & relocate | D39: alloc | E39: 2 | F39: =NA() ->  | G39: 500 | H39: 1000 | I39: 1 | J39: 1000 | K39: 0
B40: OBJECTIVE: BREAK BASEMENT SLABS
B41: Accomodation Complex | D41: m2 | F41: =NA() ->  | G41: =IF(ISNA(F41),0,INDEX(IF(UPPER(RIGHT(F41,1))=Low,UnitCostLow, IF(UPPER(RIGHT(F41,1))=High,UnitCostHigh,UnitCostSpecified)),MATCH(UPPER(LEFT(F41,LEN(F41)-1)),CostCode,0))) -> 0 | H41: =G41*E41 -> 0 | J41: 0 | K41: =+H41*(1-I41) -> 0
B42: Process Facilities | D42: m2 | F42: =NA() ->  | G42: 0 | H42: 0 | J42: 0 | K42: 0
B43: Offices, Repair, Lab, Warehouse | D43: m2 | F43: =NA() ->  | G43: 0 | H43: 0 | J43: 0 | K43: 0
B44: Storage Facilites | D44: m2 | F44: =NA() ->  | G44: 0 | H44: 0 | J44: 0 | K44: 0
B45: Water and Wastewater Treatment Facilities | D45: m2 | F45: =NA() ->  | G45: 0 | H45: 0 | J45: 0 | K45: 0
B46: U/G Heating Plant | D46: m2 | F46: =NA() ->  | G46: 0 | H46: 0 | J46: 0 | K46: 0
B47: Emulsion Plant | D47: m2 | F47: =NA() ->  | G47: 0 | H47: 0 | J47: =H47*I47 -> 0 | K47: =+H47*(1-I47) -> 0
B48: Warehouse, Shops and Other | D48: m2 | F48: =NA() ->  | G48: 0 | H48: 0 | J48: =H48*I48 -> 0 | K48: =+H48*(1-I48) -> 0
B49: Other | F49: =NA() ->  | G49: 0 | H49: 0 | J49: 0 | K49: 0
B50: OBJECTIVE: LANDFILL FOR DEMOLITION WASTE
B51: Place soil cover | D51: m3 | F51: =NA() ->  | G51: =IF(ISNA(F51),0,INDEX(IF(UPPER(RIGHT(F51,1))=Low,UnitCostLow, IF(UPPER(RIGHT(F51,1))=High,UnitCostHigh,UnitCostSpecified)),MATCH(UPPER(LEFT(F51,LEN(F51)-1)),CostCode,0))) -> 0 | H51: =G51*E51 -> 0 | J51: 0 | K51: 0
B52: Vegetate | D52: ha | F52: =NA() ->  | G52: =IF(ISNA(F52),0,INDEX(IF(UPPER(RIGHT(F52,1))=Low,UnitCostLow, IF(UPPER(RIGHT(F52,1))=High,UnitCostHigh,UnitCostSpecified)),MATCH(UPPER(LEFT(F52,LEN(F52)-1)),CostCode,0))) -> 0 | H52: =G52*E52 -> 0 | J52: 0 | K52: 0
B53: Landfill disposal fee | D53: tonne | F53: =NA() ->  | G53: =IF(ISNA(F53),0,INDEX(IF(UPPER(RIGHT(F53,1))=Low,UnitCostLow, IF(UPPER(RIGHT(F53,1))=High,UnitCostHigh,UnitCostSpecified)),MATCH(UPPER(LEFT(F53,LEN(F53)-1)),CostCode,0))) -> 0 | H53: =G53*E53 -> 0 | J53: 0 | K53: 0
B54: OBJECTIVE: GRADE AND CONTOUR
B55: Accomodation Complex | D55: ha | F55: =NA() ->  | G55: =IF(ISNA(F55),0,INDEX(IF(UPPER(RIGHT(F55,1))=Low,UnitCostLow, IF(UPPER(RIGHT(F55,1))=High,UnitCostHigh,UnitCostSpecified)),MATCH(UPPER(LEFT(F55,LEN(F55)-1)),CostCode,0))) -> 0 | H55: =G55*E55 -> 0 | J55: 0 | K55: 0
B56: Process Facilities | D56: ha | F56: =NA() ->  | G56: 0 | H56: 0 | J56: 0 | K56: 0
B57: Offices, Repair, Lab, Warehouse | D57: ha | F57: =NA() ->  | G57: 0 | H57: 0 | J57: 0 | K57: 0
B58: Storage Facilites | D58: ha | F58: =NA() ->  | G58: 0 | H58: 0 | J58: 0 | K58: 0
B59: Water and Wastewater Treatment Facilities | D59: ha | F59: =NA() ->  | G59: 0 | H59: 0 | J59: 0 | K59: 0
B60: U/G Heating Plant | D60: ha | F60: =NA() ->  | G60: 0 | H60: 0 | J60: 0 | K60: 0
B61: Emulsion Plant | D61: ha | F61: =NA() ->  | G61: 0 | H61: 0 | J61: 0 | K61: 0
B62: Warehouse, Shops and Other | D62: ha | F62: =NA() ->  | G62: 0 | H62: 0 | J62: 0 | K62: 0
B63: Place rock cover | D63: m3 | F63: =NA() ->  | G63: 0 | H63: 0 | J63: 0 | K63: 0
B64: Vegetate | D64: ha | F64: =NA() ->  | G64: 0 | H64: 0 | J64: 0 | K64: 0
B65: Other | F65: =NA() ->  | G65: 0 | H65: 0 | J65: 0 | K65: 0
B66: OBJECTIVE: LINED SUMPS
B67: Puncture liner and place soil cover | D67: m3 | F67: =NA() ->  | G67: =IF(ISNA(F67),0,INDEX(IF(UPPER(RIGHT(F67,1))=Low,UnitCostLow, IF(UPPER(RIGHT(F67,1))=High,UnitCostHigh,UnitCostSpecified)),MATCH(UPPER(LEFT(F67,LEN(F67)-1)),CostCode,0))) -> 0 | H67: =G67*E67 -> 0 | J67: =H67*I67 -> 0 | K67: =+H67*(1-I67) -> 0
B68: OBJECTIVE: RECLAIM ROADS
B69: Remove culverts | D69: each | F69: =NA() ->  | G69: =IF(ISNA(F69),0,INDEX(IF(UPPER(RIGHT(F69,1))=Low,UnitCostLow, IF(UPPER(RIGHT(F69,1))=High,UnitCostHigh,UnitCostSpecified)),MATCH(UPPER(LEFT(F69,LEN(F69)-1)),CostCode,0))) -> 0 | H69: =G69*E69 -> 0 | J69: 0 | K69: 0
B70: Remove bridges | D70: each | F70: =NA() ->  | G70: 0 | H70: 0 | J70: 0 | K70: 0
B71: Scarify and install water breaks | D71: ha | F71: =NA() ->  | G71: 0 | H71: 0 | J71: 0 | K71: 0
B72: Scarify airstriip | D72: ha | F72: =NA() ->  | G72: 0 | H72: 0 | J72: 0 | K72: 0
B73: Scarify laydown areas | D73: ha | F73: =NA() ->  | G73: 0 | H73: 0 | J73: 0 | K73: 0
B74: Vegetate | D74: ha | F74: =NA() ->  | G74: 0 | H74: 0 | J74: =H74*I74 -> 0 | K74: 0
B75: Other | F75: =NA() ->  | G75: 0 | H75: 0 | J75: =H75*I75 -> 0 | K75: 0
B76: SPECIALIZED ITEMS
B77: Dispose of misc. debris and laydown area refuse | F77: =NA() ->  | G77: =IF(ISNA(F77),0,INDEX(IF(UPPER(RIGHT(F77,1))=Low,UnitCostLow, IF(UPPER(RIGHT(F77,1))=High,UnitCostHigh,UnitCostSpecified)),MATCH(UPPER(LEFT(F77,LEN(F77)-1)),CostCode,0))) -> 0 | H77: =G77*E77 -> 0 | J77: =H77*I77 -> 0 | K77: 0
G78: Total | H78: =SUM(H5:H77)+0.0001 -> 1500.0001 | J78: =SUM(J5:J77) -> 1500 | K78: =SUM(K5:K77) -> 0
G79: % of Total | J79: =J78/H78*100 -> 99.99999333 | K79: =K78/H78*100 -> 0

Sheet Chemicals
A1: 1 | B1: Chemicals/Soil Area Name:
B3: Note: The procedures, equipment and packaging for clean up and removal of chemicals or contaminated soils are highly dependent on the nature of the chemicals and their existing state of containment. Government guidelines should be consulted on an individual chemical basis. Any estimate made here should be considered very rough unless specific evaluations have been conducted.
B4: ACTIVITY/MATERIAL | C4: Notes | D4: Units | E4: Quantity | F4: Cost Code | G4: Unit Cost | H4: Cost | I4: % Land | J4: Land Cost | K4: Water Cost
B5: HAZARDOUS MATERIALS AUDIT
B6: Phase 1 audit | D6: each | F6: =NA() ->  | G6: =IF(ISNA(F6),0,INDEX(IF(UPPER(RIGHT(F6,1))=Low,UnitCostLow, IF(UPPER(RIGHT(F6,1))=High,UnitCostHigh,UnitCostSpecified)),MATCH(UPPER(LEFT(F6,LEN(F6)-1)),CostCode,0))) -> 0 | H6: =G6*E6 -> 0 | J6: =H6*I6 -> 0 | K6: =+H6*(1-I6) -> 0
B7: Phase 2 audit | D7: each | F7: =NA() ->  | G7: 0 | H7: =G7*E7 -> 0 | J7: =H7*I7 -> 0 | K7: =+H7*(1-I7) -> 0
B8: CONSOLIDATE HAZARDOUS MATERIALS FOR REMOVAL
B9: Waste oils | D9: litre | F9: =NA() ->  | G9: 0 | H9: =G9*E9 -> 0 | J9: =H9*I9 -> 0 | K9: =+H9*(1-I9) -> 0
B10: Fuel - Type 1, eg diesel dregs | D10: litre | F10: =NA() ->  | G10: 0 | H10: 0 | J10: 0 | K10: 0
B11: Fuel - Type 1, eg gasoline dregs | D11: litre | F11: =NA() ->  | G11: 0 | H11: 0 | J11: 0 | K11: 0
B12: Waste batteries | D12: kg | F12: =NA() ->  | G12: 0 | H12: 0 | J12: 0 | K12: 0
B13: Assay & environmental lab reagents | D13: kg | F13: =NA() ->  | G13: 0 | H13: 0 | J13: 0 | K13: 0
B14: Machine shop, paints, solvents etc | D14: litre | F14: =NA() ->  | G14: 0 | H14: 0 | J14: 0 | K14: 0
B15: Contaminated soils - hydrocarbon | D15: m3 | E15: 2500 | F15: CSRl | G15: =IF(ISNA(F15),0,INDEX(IF(UPPER(RIGHT(F15,1))=Low,UnitCostLow, IF(UPPER(RIGHT(F15,1))=High,UnitCostHigh,UnitCostSpecified)),MATCH(UPPER(LEFT(F15,LEN(F15)-1)),CostCode,0))) -> 47 | H15: 117500 | I15: 0.75 | J15: =H15*I15 -> 88125 | K15: =+H15*(1-I15) -> 29375
B16: Metal contam. soil at conc. load-out | D16: m3 | F16: =NA() ->  | G16: 0 | H16: 0 | J16: =H16*I16 -> 0 | K16: =+H16*(1-I16) -> 0
B17: Glycol | D17: litre | F17: =NA() ->  | G17: 0 | H17: 0 | J17: =H17*I17 -> 0 | K17: =+H17*(1-I17) -> 0
B18: Nuclear sources | D18: each | F18: =NA() ->  | G18: =IF(ISNA(F18),0,INDEX(IF(UPPER(RIGHT(F18,1))=Low,UnitCostLow, IF(UPPER(RIGHT(F18,1))=High,UnitCostHigh,UnitCostSpecified)),MATCH(UPPER(LEFT(F18,LEN(F18)-1)),CostCode,0))) -> 0 | H18: 0 | J18: =H18*I18 -> 0 | K18: =+H18*(1-I18) -> 0
B19: HAZARDOUS MATERIALS
B20: Transportation to disposal facility | C20: assumed reagants, untreatable soils, etc | D20: allow | E20: 1 | F20: =NA() ->  | G20: 1500 | H20: =G20*E20 -> 1500 | I20: 0.5 | J20: =H20*I20 -> 750 | K20: =+H20*(1-I20) -> 750
B21: Disposal fees | D21: allow | F21: =NA() ->  | G21: =IF(ISNA(F21),0,INDEX(IF(UPPER(RIGHT(F21,1))=Low,UnitCostLow, IF(UPPER(RIGHT(F21,1))=High,UnitCostHigh,UnitCostSpecified)),MATCH(UPPER(LEFT(F21,LEN(F21)-1)),CostCode,0))) -> 0 | H21: =G21*E21 -> 0 | J21: =H21*I21 -> 0 | K21: =+H21*(1-I21) -> 0
B22: Other | F22: =NA() ->  | G22: =IF(ISNA(F22),0,INDEX(IF(UPPER(RIGHT(F22,1))=Low,UnitCostLow, IF(UPPER(RIGHT(F22,1))=High,UnitCostHigh,UnitCostSpecified)),MATCH(UPPER(LEFT(F22,LEN(F22)-1)),CostCode,0))) -> 0 | H22: =G22*E22 -> 0 | J22: =H22*I22 -> 0 | K22: =+H22*(1-I22) -> 0
B23: CONTAMINATED SOILS
B24: Contam. soil investigation - technical | D24: each | E24: 2 | F24: =NA() ->  | G24: 1000 | H24: =G24*E24 -> 2000 | I24: 1 | J24: =H24*I24 -> 2000 | K24: =+H24*(1-I24) -> 0
B25: Contam. soil investigation - drilling & sampling | D25: each | F25: =NA() ->  | G25: =IF(ISNA(F25),0,INDEX(IF(UPPER(RIGHT(F25,1))=Low,UnitCostLow, IF(UPPER(RIGHT(F25,1))=High,UnitCostHigh,UnitCostSpecified)),MATCH(UPPER(LEFT(F25,LEN(F25)-1)),CostCode,0))) -> 0 | H25: 0 | J25: 0 | K25: 0
B26: CONTAMINATED SOIL REMOVAL
B27: Contaminated soils - hydrocarbon | D27: m2 | F27: =NA() ->  | G27: =IF(ISNA(F27),0,INDEX(IF(UPPER(RIGHT(F27,1))=Low,UnitCostLow, IF(UPPER(RIGHT(F27,1))=High,UnitCostHigh,UnitCostSpecified)),MATCH(UPPER(LEFT(F27,LEN(F27)-1)),CostCode,0))) -> 0 | H27: 0 | J27: 0 | K27: 0
B28: Metal contam. soil at conc. load-out | D28: m3 | F28: =NA() ->  | G28: 0 | H28: 0 | J28: 0 | K28: 0
B29: Load, haul, dump or doze | D29: m3 | F29: =NA() ->  | G29: 0 | H29: 0 | J29: 0 | K29: 0
B30: Reagents/stabilizing agent | D30: m2 | F30: =NA() ->  | G30: 0 | H30: 0 | J30: =H30*I30 -> 0 | K30: =+H30*(1-I30) -> 0
B31: Contour reclaimed area | D31: m3 | F31: =NA() ->  | G31: 0 | H31: 0 | J31: =H31*I31 -> 0 | K31: =+H31*(1-I31) -> 0
B32: Type 2, heavy fuel and oil | D32: m3 | F32: =NA() ->  | G32: 0 | H32: 0 | J32: 0 | K32: 0
B33: CONTAMINATED SOIL VERY LOW PERMEABILITY COVER
B34: Supply geomembrame, HDPE, ES3, GCL | D34: m2 | F34: =NA() ->  | G34: =IF(ISNA(F34),0,INDEX(IF(UPPER(RIGHT(F34,1))=Low,UnitCostLow, IF(UPPER(RIGHT(F34,1))=High,UnitCostHigh,UnitCostSpecified)),MATCH(UPPER(LEFT(F34,LEN(F34)-1)),CostCode,0))) -> 0 | H34: =G34*E34 -> 0 | J34: 0 | K34: 0
B35: Upper and lower bedding layers | D35: m3 | F35: =NA() ->  | G35: 0 | H35: 0 | J35: 0 | K35: 0
B36: Install geomembrane, HDPE, ES3, GCL | D36: m2 | F36: =NA() ->  | G36: 0 | H36: 0 | J36: 0 | K36: 0
B37: Erosion protection layer | D37: m3 | F37: =NA() ->  | G37: 0 | H37: 0 | J37: 0 | K37: 0
B38: Vegetate | D38: m2 | F38: =NA() ->  | G38: 0 | H38: 0 | J38: 0 | K38: 0
B39: Install infiltration/seepage instrumentation | D39: allow | F39: =NA() ->  | G39: 0 | H39: 0 | J39: =H39*I39 -> 0 | K39: =+H39*(1-I39) -> 0
B40: Other | F40: =NA() ->  | G40: 0 | H40: 0 | J40: =H40*I40 -> 0 | K40: =+H40*(1-I40) -> 0
B41: OTHER
F42: =NA() ->  | G42: =IF(ISNA(F42),0,INDEX(IF(UPPER(RIGHT(F42,1))=Low,UnitCostLow, IF(UPPER(RIGHT(F42,1))=High,UnitCostHigh,UnitCostSpecified)),MATCH(UPPER(LEFT(F42,LEN(F42)-1)),CostCode,0))) -> 0 | H42: =G42*E42 -> 0 | J42: =H42*I42 -> 0 | K42: =+H42*(1-I42) -> 0
G43: Total | H43: =SUM(H9:H42)+0.0001 -> 121000.0001 | J43: =SUM(J5:J42) -> 90875 | K43: =SUM(K9:K42) -> 30125
G44: % of Total | J44: =J43/H43*100 -> 75.10330572 | K44: =K43/H43*100 -> 24.89669419

Sheet Water Management
A1: 1 | B1: Capital Expenditures and Short Term Water Treatment identified in 'Instructions' worksheet
B3: ACTIVITY/MATERIAL | C3: Notes | D3: Units | E3: Quantity | F3: Cost Code | G3: Unit Cost | H3: Cost
B4: OBJECTIVE: STABILIZE SEDIMENT PONDS/WATER MANAGEMENT PONDS
B5: Place soil cover | D5: m3 | F5: =NA() ->  | G5: =IF(ISNA(F5),0,INDEX(IF(UPPER(RIGHT(F5,1))=Low,UnitCostLow, IF(UPPER(RIGHT(F5,1))=High,UnitCostHigh,UnitCostSpecified)),MATCH(UPPER(LEFT(F5,LEN(F5)-1)),CostCode,0))) -> 0 | H5: =G5*E5 -> 0
B6: Doze & spread excavated material | C6: contour berms - 2000m2 | D6: m3 | E6: 2000 | F6: DSl | G6: =IF(ISNA(F6),0,INDEX(IF(UPPER(RIGHT(F6,1))=Low,UnitCostLow, IF(UPPER(RIGHT(F6,1))=High,UnitCostHigh,UnitCostSpecified)),MATCH(UPPER(LEFT(F6,LEN(F6)-1)),CostCode,0))) -> 0.95 | H6: =G6*E6 -> 1900
B7: Vegetate spread material | D7: ha | F7: =NA() ->  | G7: =IF(ISNA(F7),0,INDEX(IF(UPPER(RIGHT(F7,1))=Low,UnitCostLow, IF(UPPER(RIGHT(F7,1))=High,UnitCostHigh,UnitCostSpecified)),MATCH(UPPER(LEFT(F7,LEN(F7)-1)),CostCode,0))) -> 0 | H7: =G7*E7 -> 0
B8: Rip rap in channel base | D8: each | F8: =NA() ->  | G8: =IF(ISNA(F8),0,INDEX(IF(UPPER(RIGHT(F8,1))=Low,UnitCostLow, IF(UPPER(RIGHT(F8,1))=High,UnitCostHigh,UnitCostSpecified)),MATCH(UPPER(LEFT(F8,LEN(F8)-1)),CostCode,0))) -> 0 | H8: =G8*E8 -> 0
B9: Puncture liner | C9: restore natural drainage - 2 people, 1 day | D9: manhrs | E9: 24 | F9: Lab-sl | G9: =IF(ISNA(F9),0,INDEX(IF(UPPER(RIGHT(F9,1))=Low,UnitCostLow, IF(UPPER(RIGHT(F9,1))=High,UnitCostHigh,UnitCostSpecified)),MATCH(UPPER(LEFT(F9,LEN(F9)-1)),CostCode,0))) -> 49.6 | H9: =G9*E9 -> 1190.4
B10: OBJECTIVE: REDIRECT RUNOFF/CONSTRUCT DIVERSION DITCHES
B11: Excavate ditches -soil | D11: m3 | F11: =NA() ->  | G11: =IF(ISNA(F11),0,INDEX(IF(UPPER(RIGHT(F11,1))=Low,UnitCostLow, IF(UPPER(RIGHT(F11,1))=High,UnitCostHigh,UnitCostSpecified)),MATCH(UPPER(LEFT(F11,LEN(F11)-1)),CostCode,0))) -> 0 | H11: =G11*E11 -> 0
B12: Excavate ditches -rock | D12: m3 | F12: =NA() ->  | G12: =IF(ISNA(F12),0,INDEX(IF(UPPER(RIGHT(F12,1))=Low,UnitCostLow, IF(UPPER(RIGHT(F12,1))=High,UnitCostHigh,UnitCostSpecified)),MATCH(UPPER(LEFT(F12,LEN(F12)-1)),CostCode,0))) -> 0 | H12: =G12*E12 -> 0
B13: Stabilize side slopes | D13: m3 | F13: =NA() ->  | G13: =IF(ISNA(F13),0,INDEX(IF(UPPER(RIGHT(F13,1))=Low,UnitCostLow, IF(UPPER(RIGHT(F13,1))=High,UnitCostHigh,UnitCostSpecified)),MATCH(UPPER(LEFT(F13,LEN(F13)-1)),CostCode,0))) -> 0 | H13: =G13*E13 -> 0
B14: Rip rap in channel base | D14: m3 | F14: =NA() ->  | G14: =IF(ISNA(F14),0,INDEX(IF(UPPER(RIGHT(F14,1))=Low,UnitCostLow, IF(UPPER(RIGHT(F14,1))=High,UnitCostHigh,UnitCostSpecified)),MATCH(UPPER(LEFT(F14,LEN(F14)-1)),CostCode,0))) -> 0 | H14: =G14*E14 -> 0
B15: OBJECTIVE: BREACH DITCHES
B16: Excavate breaches | D16: m3 | F16: =NA() ->  | G16: =IF(ISNA(F16),0,INDEX(IF(UPPER(RIGHT(F16,1))=Low,UnitCostLow, IF(UPPER(RIGHT(F16,1))=High,UnitCostHigh,UnitCostSpecified)),MATCH(UPPER(LEFT(F16,LEN(F16)-1)),CostCode,0))) -> 0 | H16: =G16*E16 -> 0
B17: Backfill/recontour | D17: m3 | F17: =NA() ->  | G17: =IF(ISNA(F17),0,INDEX(IF(UPPER(RIGHT(F17,1))=Low,UnitCostLow, IF(UPPER(RIGHT(F17,1))=High,UnitCostHigh,UnitCostSpecified)),MATCH(UPPER(LEFT(F17,LEN(F17)-1)),CostCode,0))) -> 0 | H17: =G17*E17 -> 0
B18: Install flow dissipation | D18: m3 | F18: =NA() ->  | G18: =IF(ISNA(F18),0,INDEX(IF(UPPER(RIGHT(F18,1))=Low,UnitCostLow, IF(UPPER(RIGHT(F18,1))=High,UnitCostHigh,UnitCostSpecified)),MATCH(UPPER(LEFT(F18,LEN(F18)-1)),CostCode,0))) -> 0 | H18: =G18*E18 -> 0
B19: Vegetate remainder of ditch | D19: m2 | F19: =NA() ->  | G19: =IF(ISNA(F19),0,INDEX(IF(UPPER(RIGHT(F19,1))=Low,UnitCostLow, IF(UPPER(RIGHT(F19,1))=High,UnitCostHigh,UnitCostSpecified)),MATCH(UPPER(LEFT(F19,LEN(F19)-1)),CostCode,0))) -> 0 | H19: =G19*E19 -> 0
B20: OBJECTIVE: FRESH WATER SUPPLY
B21: Breach embankment | D21: m | F21: =NA() ->  | G21: =IF(ISNA(F21),0,INDEX(IF(UPPER(RIGHT(F21,1))=Low,UnitCostLow, IF(UPPER(RIGHT(F21,1))=High,UnitCostHigh,UnitCostSpecified)),MATCH(UPPER(LEFT(F21,LEN(F21)-1)),CostCode,0))) -> 0 | H21: =G21*E21 -> 0
B22: Remove pump | D22: LS | F22: =NA() ->  | G22: =IF(ISNA(F22),0,INDEX(IF(UPPER(RIGHT(F22,1))=Low,UnitCostLow, IF(UPPER(RIGHT(F22,1))=High,UnitCostHigh,UnitCostSpecified)),MATCH(UPPER(LEFT(F22,LEN(F22)-1)),CostCode,0))) -> 0 | H22: =G22*E22 -> 0
B23: Remove pipeline | D23: m | F23: =NA() ->  | G23: =IF(ISNA(F23),0,INDEX(IF(UPPER(RIGHT(F23,1))=Low,UnitCostLow, IF(UPPER(RIGHT(F23,1))=High,UnitCostHigh,UnitCostSpecified)),MATCH(UPPER(LEFT(F23,LEN(F23)-1)),CostCode,0))) -> 0 | H23: =G23*E23 -> 0
B24: OBJECTIVE: WATER CONTROL IN RECLAMATION QUARRY
B25: Install pumping system | D25: LS | F25: =NA() ->  | G25: =IF(ISNA(F25),0,INDEX(IF(UPPER(RIGHT(F25,1))=Low,UnitCostLow, IF(UPPER(RIGHT(F25,1))=High,UnitCostHigh,UnitCostSpecified)),MATCH(UPPER(LEFT(F25,LEN(F25)-1)),CostCode,0))) -> 0 | H25: =G25*E25 -> 0
B26: Remove pumping system | C26: allocation | D26: LS | E26: 1 | F26: =NA() ->  | G26: 500 | H26: =G26*E26 -> 500
B27: OBJECTIVE: REMOVE WATER PIPELINES
B28: Remove pipes | D28: m | F28: PSRl | G28: =IF(ISNA(F28),0,INDEX(IF(UPPER(RIGHT(F28,1))=Low,UnitCostLow, IF(UPPER(RIGHT(F28,1))=High,UnitCostHigh,UnitCostSpecified)),MATCH(UPPER(LEFT(F28,LEN(F28)-1)),CostCode,0))) -> 1 | H28: =G28*E28 -> 0
B29: Concrete plug deep pipes | D29: m3 | F29: =NA() ->  | G29: =IF(ISNA(F29),0,INDEX(IF(UPPER(RIGHT(F29,1))=Low,UnitCostLow, IF(UPPER(RIGHT(F29,1))=High,UnitCostHigh,UnitCostSpecified)),MATCH(UPPER(LEFT(F29,LEN(F29)-1)),CostCode,0))) -> 0 | H29: =G29*E29 -> 0
B30: Other | F30: =NA() ->  | G30: =IF(ISNA(F30),0,INDEX(IF(UPPER(RIGHT(F30,1))=Low,UnitCostLow, IF(UPPER(RIGHT(F30,1))=High,UnitCostHigh,UnitCostSpecified)),MATCH(UPPER(LEFT(F30,LEN(F30)-1)),CostCode,0))) -> 0 | H30: =G30*E30 -> 0
B31: OBJECTIVE: GROUNDWATER COLLECTION SYSTEM
B32: Excavate/install sumps | D32: m3 | F32: =NA() ->  | G32: =IF(ISNA(F32),0,INDEX(IF(UPPER(RIGHT(F32,1))=Low,UnitCostLow, IF(UPPER(RIGHT(F32,1))=High,UnitCostHigh,UnitCostSpecified)),MATCH(UPPER(LEFT(F32,LEN(F32)-1)),CostCode,0))) -> 0 | H32: =G32*E32 -> 0
B33: Install pumping wells | D33: m3 | F33: =NA() ->  | G33: =IF(ISNA(F33),0,INDEX(IF(UPPER(RIGHT(F33,1))=Low,UnitCostLow, IF(UPPER(RIGHT(F33,1))=High,UnitCostHigh,UnitCostSpecified)),MATCH(UPPER(LEFT(F33,LEN(F33)-1)),CostCode,0))) -> 0 | H33: =G33*E33 -> 0
B34: Install pumps/pipelines/power supply | D34: LS | F34: =NA() ->  | G34: =IF(ISNA(F34),0,INDEX(IF(UPPER(RIGHT(F34,1))=Low,UnitCostLow, IF(UPPER(RIGHT(F34,1))=High,UnitCostHigh,UnitCostSpecified)),MATCH(UPPER(LEFT(F34,LEN(F34)-1)),CostCode,0))) -> 0 | H34: =G34*E34 -> 0
B35: OBJECTIVE: CONSTRUCT CONTAMINATED WATER STORAGE POND
B36: Excavate pond | D36: m3 | F36: =NA() ->  | G36: =IF(ISNA(F36),0,INDEX(IF(UPPER(RIGHT(F36,1))=Low,UnitCostLow, IF(UPPER(RIGHT(F36,1))=High,UnitCostHigh,UnitCostSpecified)),MATCH(UPPER(LEFT(F36,LEN(F36)-1)),CostCode,0))) -> 0 | H36: =G36*E36 -> 0
B37: Doze & spread excavated material | D37: m3 | F37: =NA() ->  | G37: 0 | H37: 0
B38: Vegetate spread material | D38: ha | F38: =NA() ->  | G38: 0 | H38: 0
B39: Bedding layer | D39: m3 | F39: =NA() ->  | G39: 0 | H39: 0
B40: Supply geomembrane | D40: m2 | F40: =NA() ->  | G40: 0 | H40: 0
B41: Install geomembrane | D41: m2 | F41: =NA() ->  | G41: 0 | H41: 0
B42: Erosion protection layer | D42: m3 | F42: =NA() ->  | G42: 0 | H42: 0
B43: OBJECTIVE: CONSTRUCT PASSIVE TREATMENT SYSTEM (e.g. Constructed Wetland)
B44: Construct access roads | D44: km | F44: =NA() ->  | G44: 0 | H44: =G44*E44 -> 0
B45: install HDPE piping system from collection pond | D45: m | F45: =NA() ->  | G45: 0 | H45: =G45*E45 -> 0
B46: Inter-cell flow structures | D46: allow | F46: =NA() ->  | G46: 0 | H46: 0
B47: Install liners | D47: m2 | F47: =NA() ->  | G47: 0 | H47: =G47*E47 -> 0
B48: Install growth media | D48: m3 | F48: =NA() ->  | G48: 0 | H48: 0
B49: Wetland vegetation | D49: ha | F49: =NA() ->  | G49: 0 | H49: 0
B50: OBJECTIVE: CONSTRUCT WATER TREATMENT PLANT
B51: Build treatment plant | D51: LS | F51: =NA() ->  | G51: =IF(ISNA(F51),0,INDEX(IF(UPPER(RIGHT(F51,1))=Low,UnitCostLow, IF(UPPER(RIGHT(F51,1))=High,UnitCostHigh,UnitCostSpecified)),MATCH(UPPER(LEFT(F51,LEN(F51)-1)),CostCode,0))) -> 0 | H51: =G51*E51 -> 0
B52: Build sludge containment facility | D52: LS | F52: =NA() ->  | G52: =IF(ISNA(F52),0,INDEX(IF(UPPER(RIGHT(F52,1))=Low,UnitCostLow, IF(UPPER(RIGHT(F52,1))=High,UnitCostHigh,UnitCostSpecified)),MATCH(UPPER(LEFT(F52,LEN(F52)-1)),CostCode,0))) -> 0 | H52: =G52*E52 -> 0
B53: OBJECTIVE: WATER TREATMENT
B54: Water treatment - smapling and reporting | C54: From Water Treatment Spreadsheet | D54: alloc | F54: =NA() ->  | G54: =IF(ISNA(F54),0,INDEX(IF(UPPER(RIGHT(F54,1))=Low,UnitCostLow, IF(UPPER(RIGHT(F54,1))=High,UnitCostHigh,UnitCostSpecified)),MATCH(UPPER(LEFT(F54,LEN(F54)-1)),CostCode,0))) -> 0 | H54: =WaterTreatCost -> 12350.0001
G55: Total | H55: =SUM(H4:H54)+0.0001 -> 15940.4002

Sheet Water Treatment
A1: 1 | B1: Post Closure Water Treatment - Identified as long term/post-closure in 'Instructions' worksheet
B3: ACTIVITY/MATERIAL | C3: Notes | D3: Units | E3: Quantity | F3: Cost Code | G3: Unit Cost | H3: Cost
B4: OBJECTIVE: ADDITION OF REAGENTS TO WTP
B5: H2O2 | D5: kg | F5: =NA() ->  | G5: =IF(ISNA(F5),0,INDEX(IF(UPPER(RIGHT(F5,1))=Low,UnitCostLow, IF(UPPER(RIGHT(F5,1))=High,UnitCostHigh,UnitCostSpecified)),MATCH(UPPER(LEFT(F5,LEN(F5)-1)),CostCode,0))) -> 0 | H5: =G5*E5 -> 0
B6: lime | D6: kg | F6: =NA() ->  | G6: 0 | H6: 0
B7: ferric sulphate | D7: kg | F7: =NA() ->  | G7: 0 | H7: 0
B8: ferrous sulphate | D8: kg | F8: =NA() ->  | G8: 0 | H8: 0
B9: flocculents | D9: kg | F9: =NA() ->  | G9: 0 | H9: 0
B10: Other - WTP operation | D10: m3 | E10: 175 | F10: OTPh | G10: 2 | H10: 350
B11: OBJECTIVE: LABOUR AND SUPPLIES
B12: Annual fuel | D12: litres | F12: =NA() ->  | G12: =IF(ISNA(F12),0,INDEX(IF(UPPER(RIGHT(F12,1))=Low,UnitCostLow, IF(UPPER(RIGHT(F12,1))=High,UnitCostHigh,UnitCostSpecified)),MATCH(UPPER(LEFT(F12,LEN(F12)-1)),CostCode,0))) -> 0 | H12: =G12*E12 -> 0
B13: Annual power | D13: kW-h | F13: =NA() ->  | G13: =IF(ISNA(F13),0,INDEX(IF(UPPER(RIGHT(F13,1))=Low,UnitCostLow, IF(UPPER(RIGHT(F13,1))=High,UnitCostHigh,UnitCostSpecified)),MATCH(UPPER(LEFT(F13,LEN(F13)-1)),CostCode,0))) -> 0 | H13: =G13*E13 -> 0
B14: Electrician/mechanic to maintain treatment plant | D14: allow | F14: =NA() ->  | G14: 0 | H14: 0
B15: Equipment maintenance and parts | D15: allow | F15: =NA() ->  | G15: 0 | H15: 0
B16: Misc. supplies, hoses, tools | D16: allow | F16: =NA() ->  | G16: 0 | H16: 0
B17: Communications | D17: allow | F17: =NA() ->  | G17: 0 | H17: 0
B18: Other | F18: =NA() ->  | G18: 0 | H18: 0
B19: OBJECTIVE: WTP WATER SAMPLING AND ANALYSES
B20: Sampling equipment | D20: allow | F20: =NA() ->  | G20: =IF(ISNA(F20),0,INDEX(IF(UPPER(RIGHT(F20,1))=Low,UnitCostLow, IF(UPPER(RIGHT(F20,1))=High,UnitCostHigh,UnitCostSpecified)),MATCH(UPPER(LEFT(F20,LEN(F20)-1)),CostCode,0))) -> 0 | H20: =G20*E20 -> 0
B21: Analyses | D21: allow | E21: 1 | F21: WSl | G21: =IF(ISNA(F21),0,INDEX(IF(UPPER(RIGHT(F21,1))=Low,UnitCostLow, IF(UPPER(RIGHT(F21,1))=High,UnitCostHigh,UnitCostSpecified)),MATCH(UPPER(LEFT(F21,LEN(F21)-1)),CostCode,0))) -> 7000 | H21: =G21*E21 -> 7000
B22: Shipping to laboratory | D22: allow | F22: =NA() ->  | G22: =IF(ISNA(F22),0,INDEX(IF(UPPER(RIGHT(F22,1))=Low,UnitCostLow, IF(UPPER(RIGHT(F22,1))=High,UnitCostHigh,UnitCostSpecified)),MATCH(UPPER(LEFT(F22,LEN(F22)-1)),CostCode,0))) -> 0 | H22: =G22*E22 -> 0
B23: Reporting (annual Reporting, O&M, Spill Contingency, etc) | D23: allow | E23: 1 | G23: 5000 | H23: =G23*E23 -> 5000
B24: Other - Misc sampling and shipping | D24: allow | F24: =NA() ->  | G24: 0 | H24: =G24*E24 -> 0
B25: OBJECTIVE:SITE ACCESS
B26: Road maintenance (incl. snow removal) | D26: allow | F26: =NA() ->  | G26: =IF(ISNA(F26),0,INDEX(IF(UPPER(RIGHT(F26,1))=Low,UnitCostLow, IF(UPPER(RIGHT(F26,1))=High,UnitCostHigh,UnitCostSpecified)),MATCH(UPPER(LEFT(F26,LEN(F26)-1)),CostCode,0))) -> 0 | H26: =G26*E26 -> 0
B27: Winter road tariff | D27: allow | F27: =NA() ->  | G27: =IF(ISNA(F27),0,INDEX(IF(UPPER(RIGHT(F27,1))=Low,UnitCostLow, IF(UPPER(RIGHT(F27,1))=High,UnitCostHigh,UnitCostSpecified)),MATCH(UPPER(LEFT(F27,LEN(F27)-1)),CostCode,0))) -> 0 | H27: =G27*E27 -> 0
B28: Truck rental | D28: allow | F28: =NA() ->  | G28: =IF(ISNA(F28),0,INDEX(IF(UPPER(RIGHT(F28,1))=Low,UnitCostLow, IF(UPPER(RIGHT(F28,1))=High,UnitCostHigh,UnitCostSpecified)),MATCH(UPPER(LEFT(F28,LEN(F28)-1)),CostCode,0))) -> 0 | H28: =G28*E28 -> 0
B29: Air support | D29: allow | F29: =NA() ->  | G29: =IF(ISNA(F29),0,INDEX(IF(UPPER(RIGHT(F29,1))=Low,UnitCostLow, IF(UPPER(RIGHT(F29,1))=High,UnitCostHigh,UnitCostSpecified)),MATCH(UPPER(LEFT(F29,LEN(F29)-1)),CostCode,0))) -> 0 | H29: =G29*E29 -> 0
G31: Annual water treatment costs | H31: =SUM(H5:H30)+0.0001 -> 12350.0001
B32: Number of years of water treatment | D32: years | E32: 1
G33: Total water treatment costs | H33: =AnnualTreat1Cost*E32 -> 12350.0001

Sheet ICM
A1: 1 | B1: Interim Care and Maintenance
B3: ACTIVITY/MATERIAL | C3: Notes | D3: Units | E3: Quantity | F3: Cost Code | G3: Unit Cost | H3: Cost
B4: INTERIM CARE & MAINTENANCE
B5: on-site caretaker | D5: manmonths | F5: =NA() ->  | G5: =IF(ISNA(F5),0,INDEX(IF(UPPER(RIGHT(F5,1))=Low,UnitCostLow, IF(UPPER(RIGHT(F5,1))=High,UnitCostHigh,UnitCostSpecified)),MATCH(UPPER(LEFT(F5,LEN(F5)-1)),CostCode,0))) -> 0 | H5: =G5*E5 -> 0
B6: extra personnel | D6: manmonths | F6: =NA() ->  | G6: 0 | H6: 0
B7: -electrician | D7: manmonths | F7: =NA() ->  | G7: =IF(ISNA(F7),0,INDEX(IF(UPPER(RIGHT(F7,1))=Low,UnitCostLow, IF(UPPER(RIGHT(F7,1))=High,UnitCostHigh,UnitCostSpecified)),MATCH(UPPER(LEFT(F7,LEN(F7)-1)),CostCode,0))) -> 0 | H7: =G7*E7 -> 0
B8: -mechanic | D8: manmonths | F8: =NA() ->  | G8: =IF(ISNA(F8),0,INDEX(IF(UPPER(RIGHT(F8,1))=Low,UnitCostLow, IF(UPPER(RIGHT(F8,1))=High,UnitCostHigh,UnitCostSpecified)),MATCH(UPPER(LEFT(F8,LEN(F8)-1)),CostCode,0))) -> 0 | H8: =G8*E8 -> 0
B9: annual fuel | D9: litre | F9: =NA() ->  | G9: 0 | H9: 0
B10: misc. supplies | D10: allow | F10: =NA() ->  | G10: =IF(ISNA(F10),0,INDEX(IF(UPPER(RIGHT(F10,1))=Low,UnitCostLow, IF(UPPER(RIGHT(F10,1))=High,UnitCostHigh,UnitCostSpecified)),MATCH(UPPER(LEFT(F10,LEN(F10)-1)),CostCode,0))) -> 0 | H10: =G10*E10 -> 0
B11: pick-up truck | D11: each | F11: =NA() ->  | G11: 0 | H11: 0
B12: small dozer | D12: allow | F12: =NA() ->  | G12: 0 | H12: 0
B13: small excavator | D13: allow | F13: =NA() ->  | G13: 0 | H13: 0
B14: snow machine | D14: allow | F14: =NA() ->  | G14: 0 | H14: 0
B15: communications | D15: allow | F15: =NA() ->  | G15: 0 | H15: 0
B16: SNP/AEMP water sampling & reporting | D16: each | F16: =NA() ->  | G16: 0 | H16: 0
B17: geotechnical assessment | D17: each | F17: =NA() ->  | G17: 0 | H17: 0
B18: interim water treatment | F18: =NA() ->  | H18: =AnnualTreat1Cost -> 12350.0001
B19: other | D19: each | F19: =NA() ->  | G19: 0 | H19: 0
G20: Annual Interim C&M Cost | H20: =SUM(H5:H19) -> 12350.0001
B21: Number of years of ICM | D21: years | E21: 1 | G21: Total Cost | H21: =H20*E21 -> 12350.0001

Sheet PostClosure
A1: 1 | B1: Post-Closure Monitoring & Maintenance:
B3: ACTIVITY/MATERIAL | C3: Notes | D3: Units | E3: Quantity | F3: Cost Code | G3: Unit Cost | H3: Cost
B4: OBJECTIVE: MONITORING & INSPECTIONS
B5: Annual geotechnical inspection | D5: each | F5: =NA() ->  | G5: =IF(ISNA(F5),0,INDEX(IF(UPPER(RIGHT(F5,1))=Low,UnitCostLow, IF(UPPER(RIGHT(F5,1))=High,UnitCostHigh,UnitCostSpecified)),MATCH(UPPER(LEFT(F5,LEN(F5)-1)),CostCode,0))) -> 0 | H5: =G5*E5 -> 0
B6: Survey inspection | D6: each | F6: =NA() ->  | G6: 0 | H6: 0
B7: Site water monitoring (AEMP and SNP) | D7: each | F7: =NA() ->  | G7: =IF(ISNA(F7),0,INDEX(IF(UPPER(RIGHT(F7,1))=Low,UnitCostLow, IF(UPPER(RIGHT(F7,1))=High,UnitCostHigh,UnitCostSpecified)),MATCH(UPPER(LEFT(F7,LEN(F7)-1)),CostCode,0))) -> 0 | H7: 0
B8: - During pit flooding | D8: each | F8: =NA() ->  | G8: 0 | H8: 0
B9: - Post pit flooding | D9: each | F9: =NA() ->  | G9: 0 | H9: 0
B10: Air Quality Monitoring Program (AQMP) | D10: each | F10: =NA() ->  | G10: 0 | H10: 0
B11: Wildlife Effects Monitoring Program (WEMP) | D11: each | F11: =NA() ->  | G11: =IF(ISNA(F11),0,INDEX(IF(UPPER(RIGHT(F11,1))=Low,UnitCostLow, IF(UPPER(RIGHT(F11,1))=High,UnitCostHigh,UnitCostSpecified)),MATCH(UPPER(LEFT(F11,LEN(F11)-1)),CostCode,0))) -> 0 | H11: 0
B12: Vegetation Monitoring | D12: each | F12: =NA() ->  | G12: 0 | H12: 0
B13: Other | F13: =NA() ->  | G13: =IF(ISNA(F13),0,INDEX(IF(UPPER(RIGHT(F13,1))=Low,UnitCostLow, IF(UPPER(RIGHT(F13,1))=High,UnitCostHigh,UnitCostSpecified)),MATCH(UPPER(LEFT(F13,LEN(F13)-1)),CostCode,0))) -> 0 | H13: =G13*E13 -> 0
B14: OBJECTIVE: SITE MAINTENANCE
B15: Repair erosion - infill gullies | D15: allow | F15: =NA() ->  | G15: 0 | H15: =G15*E15 -> 0
B16: Repair erosion - upgrade diversion ditches | D16: allow | F16: =NA() ->  | G16: 0 | H16: 0
B17: Remove problem vegetation | D17: allow | F17: =NA() ->  | G17: 0 | H17: 0
B18: Repair animal damage | D18: allow | F18: =NA() ->  | G18: 0 | H18: 0
B19: Repair/upgrade access controls | D19: allow | F19: =NA() ->  | G19: 0 | H19: 0
B20: Other | F20: =NA() ->  | G20: 0 | H20: 0
B21: SPILLWAY MAINTENANCE
B22: Repair erosion | D22: m3 | F22: =NA() ->  | G22: 0 | H22: =G22*E22 -> 0
B23: Clear spillway | D23: each | F23: =NA() ->  | G23: 0 | H23: =G23*E23 -> 0
B24: Other | F24: =NA() ->  | G24: 0 | H24: =G24*E24 -> 0
B25: POST-CLOSURE WATER TREATMENT
B26: Annual water treatment cost, from "Water Treatment" | H26: =AnnualTreat1Cost -> 12350.0001
B28: Subtotal, Annual post-closure costs | H28: =SUM(H5:H27)+0.0001 -> 12350.0002
B29: Discount rate for calculation of net present value of post-closure cost, % | F29: 0
B30: Number of years of post-closure activity | G30: years
B31: Present Value of payment stream | H31: =PV(DiscountRate,PCYears, PCAnnualTotal)*-1 -> 0

Sheet Mobilization
A1: 1 | B1: Mobilization/Demobilization:
B3: ACTIVITY/MATERIAL | C3: Notes | D3: Units | E3: Quantity | F3: Cost Code | G3: Unit Cost | H3: Cost
B4: MOBILIZE HEAVY EQUIPMENT
B5: Excavators | D5: each | F5: =NA() ->  | G5: =IF(ISNA(F5),0,INDEX(IF(UPPER(RIGHT(F5,1))=Low,UnitCostLow, IF(UPPER(RIGHT(F5,1))=High,UnitCostHigh,UnitCostSpecified)),MATCH(UPPER(LEFT(F5,LEN(F5)-1)),CostCode,0))) -> 0 | H5: =G5*E5 -> 0
B6: Dump trucks | D6: each | F6: =NA() ->  | G6: 0 | H6: 0
B7: Dozers | D7: each | F7: =NA() ->  | G7: 0 | H7: 0
B8: Demolition shears | D8: each | F8: =NA() ->  | G8: 0 | H8: 0
B9: Crane | D9: each | F9: =NA() ->  | G9: 0 | H9: 0
B10: Loader | D10: each | F10: =NA() ->  | G10: 0 | H10: =G10*E10 -> 0
B11: Compactor | D11: each | F11: =NA() ->  | G11: 0 | H11: =G11*E11 -> 0
B12: Light duty vehicles | D12: each | F12: =NA() ->  | G12: 0 | H12: 0
B13: MOBILIZE MISC. EQUIPMENT
B14: Pump shipping | D14: each | F14: =NA() ->  | G14: =IF(ISNA(F14),0,INDEX(IF(UPPER(RIGHT(F14,1))=Low,UnitCostLow, IF(UPPER(RIGHT(F14,1))=High,UnitCostHigh,UnitCostSpecified)),MATCH(UPPER(LEFT(F14,LEN(F14)-1)),CostCode,0))) -> 0 | H14: =G14*E14 -> 0
B15: Pipe shipping | D15: m | F15: =NA() ->  | G15: =IF(ISNA(F15),0,INDEX(IF(UPPER(RIGHT(F15,1))=Low,UnitCostLow, IF(UPPER(RIGHT(F15,1))=High,UnitCostHigh,UnitCostSpecified)),MATCH(UPPER(LEFT(F15,LEN(F15)-1)),CostCode,0))) -> 0 | H15: =G15*E15 -> 0
B16: Minor tools and equipment | D16: allow | F16: =NA() ->  | G16: =IF(ISNA(F16),0,INDEX(IF(UPPER(RIGHT(F16,1))=Low,UnitCostLow, IF(UPPER(RIGHT(F16,1))=High,UnitCostHigh,UnitCostSpecified)),MATCH(UPPER(LEFT(F16,LEN(F16)-1)),CostCode,0))) -> 0 | H16: =G16*E16 -> 0
B17: Truck tires | D17: allow | F17: =NA() ->  | G17: =IF(ISNA(F17),0,INDEX(IF(UPPER(RIGHT(F17,1))=Low,UnitCostLow, IF(UPPER(RIGHT(F17,1))=High,UnitCostHigh,UnitCostSpecified)),MATCH(UPPER(LEFT(F17,LEN(F17)-1)),CostCode,0))) -> 0 | H17: =G17*E17 -> 0
B18: Other | F18: =NA() ->  | G18: =IF(ISNA(F18),0,INDEX(IF(UPPER(RIGHT(F18,1))=Low,UnitCostLow, IF(UPPER(RIGHT(F18,1))=High,UnitCostHigh,UnitCostSpecified)),MATCH(UPPER(LEFT(F18,LEN(F18)-1)),CostCode,0))) -> 0 | H18: 0
B19: MOBILIZE CAMP
B20: Reclamation activities | D20: allow | F20: =NA() ->  | G20: =IF(ISNA(F20),0,INDEX(IF(UPPER(RIGHT(F20,1))=Low,UnitCostLow, IF(UPPER(RIGHT(F20,1))=High,UnitCostHigh,UnitCostSpecified)),MATCH(UPPER(LEFT(F20,LEN(F20)-1)),CostCode,0))) -> 0 | H20: =G20*E20 -> 0
B21: Long term reclamation activities (eg pump flooding) | D21: allow | F21: =NA() ->  | G21: =IF(ISNA(F21),0,INDEX(IF(UPPER(RIGHT(F21,1))=Low,UnitCostLow, IF(UPPER(RIGHT(F21,1))=High,UnitCostHigh,UnitCostSpecified)),MATCH(UPPER(LEFT(F21,LEN(F21)-1)),CostCode,0))) -> 0 | H21: =G21*E21 -> 0
B22: MOBILIZE WORKERS
B23: Reclamation activities - transport | D23: each | F23: =NA() ->  | G23: =IF(ISNA(F23),0,INDEX(IF(UPPER(RIGHT(F23,1))=Low,UnitCostLow, IF(UPPER(RIGHT(F23,1))=High,UnitCostHigh,UnitCostSpecified)),MATCH(UPPER(LEFT(F23,LEN(F23)-1)),CostCode,0))) -> 0 | H23: =G23*E23 -> 0
B24: Reclamation activities - travel time | D24: manhours | F24: =NA() ->  | G24: =IF(ISNA(F24),0,INDEX(IF(UPPER(RIGHT(F24,1))=Low,UnitCostLow, IF(UPPER(RIGHT(F24,1))=High,UnitCostHigh,UnitCostSpecified)),MATCH(UPPER(LEFT(F24,LEN(F24)-1)),CostCode,0))) -> 0 | H24: =G24*E24 -> 0
B25: Long term reclamation activities (eg pump flooding) - transport | D25: each | F25: =NA() ->  | G25: =IF(ISNA(F25),0,INDEX(IF(UPPER(RIGHT(F25,1))=Low,UnitCostLow, IF(UPPER(RIGHT(F25,1))=High,UnitCostHigh,UnitCostSpecified)),MATCH(UPPER(LEFT(F25,LEN(F25)-1)),CostCode,0))) -> 0 | H25: =G25*E25 -> 0
B26: Long term reclamation activities (eg pump flooding) - travel time | D26: each | F26: =NA() ->  | G26: =IF(ISNA(F26),0,INDEX(IF(UPPER(RIGHT(F26,1))=Low,UnitCostLow, IF(UPPER(RIGHT(F26,1))=High,UnitCostHigh,UnitCostSpecified)),MATCH(UPPER(LEFT(F26,LEN(F26)-1)),CostCode,0))) -> 0 | H26: =G26*E26 -> 0
B27: Monitoring Airfare | D27: each | F27: =NA() ->  | G27: =IF(ISNA(F27),0,INDEX(IF(UPPER(RIGHT(F27,1))=Low,UnitCostLow, IF(UPPER(RIGHT(F27,1))=High,UnitCostHigh,UnitCostSpecified)),MATCH(UPPER(LEFT(F27,LEN(F27)-1)),CostCode,0))) -> 0 | H27: =G27*E27 -> 0
B28: WORKER ACCOMODATIONS
B29: Reclamation activities | D29: manmonths | F29: =NA() ->  | G29: =IF(ISNA(F29),0,INDEX(IF(UPPER(RIGHT(F29,1))=Low,UnitCostLow, IF(UPPER(RIGHT(F29,1))=High,UnitCostHigh,UnitCostSpecified)),MATCH(UPPER(LEFT(F29,LEN(F29)-1)),CostCode,0))) -> 0 | H29: =G29*E29 -> 0
B30: Long term reclamation activities (eg pump flooding) | D30: manmonths | F30: =NA() ->  | G30: =IF(ISNA(F30),0,INDEX(IF(UPPER(RIGHT(F30,1))=Low,UnitCostLow, IF(UPPER(RIGHT(F30,1))=High,UnitCostHigh,UnitCostSpecified)),MATCH(UPPER(LEFT(F30,LEN(F30)-1)),CostCode,0))) -> 0 | H30: =G30*E30 -> 0
B31: MOBILIZE FUEL
B32: Fuel freight - reclamation activities | D32: litre | F32: =NA() ->  | G32: =IF(ISNA(F32),0,INDEX(IF(UPPER(RIGHT(F32,1))=Low,UnitCostLow, IF(UPPER(RIGHT(F32,1))=High,UnitCostHigh,UnitCostSpecified)),MATCH(UPPER(LEFT(F32,LEN(F32)-1)),CostCode,0))) -> 0 | H32: =G32*E32 -> 0
B33: Fuel freight - long reclamation activities | D33: litre | F33: =NA() ->  | G33: =IF(ISNA(F33),0,INDEX(IF(UPPER(RIGHT(F33,1))=Low,UnitCostLow, IF(UPPER(RIGHT(F33,1))=High,UnitCostHigh,UnitCostSpecified)),MATCH(UPPER(LEFT(F33,LEN(F33)-1)),CostCode,0))) -> 0 | H33: =G33*E33 -> 0
B34: Fuel freight accomodations | D34: litre | F34: =NA() ->  | G34: =IF(ISNA(F34),0,INDEX(IF(UPPER(RIGHT(F34,1))=Low,UnitCostLow, IF(UPPER(RIGHT(F34,1))=High,UnitCostHigh,UnitCostSpecified)),MATCH(UPPER(LEFT(F34,LEN(F34)-1)),CostCode,0))) -> 0 | H34: =G34*E34 -> 0
B35: WINTER ROAD
B36: Construction and operation | D36: km | F36: =NA() ->  | G36: =IF(ISNA(F36),0,INDEX(IF(UPPER(RIGHT(F36,1))=Low,UnitCostLow, IF(UPPER(RIGHT(F36,1))=High,UnitCostHigh,UnitCostSpecified)),MATCH(UPPER(LEFT(F36,LEN(F36)-1)),CostCode,0))) -> 0 | H36: =G36*E36 -> 0
B37: Limited winter use | D37: km | F37: =NA() ->  | G37: =IF(ISNA(F37),0,INDEX(IF(UPPER(RIGHT(F37,1))=Low,UnitCostLow, IF(UPPER(RIGHT(F37,1))=High,UnitCostHigh,UnitCostSpecified)),MATCH(UPPER(LEFT(F37,LEN(F37)-1)),CostCode,0))) -> 0 | H37: =G37*E37 -> 0
B38: Winter road tarriff | D38: km | F38: =NA() ->  | G38: =IF(ISNA(F38),0,INDEX(IF(UPPER(RIGHT(F38,1))=Low,UnitCostLow, IF(UPPER(RIGHT(F38,1))=High,UnitCostHigh,UnitCostSpecified)),MATCH(UPPER(LEFT(F38,LEN(F38)-1)),CostCode,0))) -> 0 | H38: =G38*E38 -> 0
B39: DEMOBILIZE OTHER INFRASTRUCTURE AND SITE EQUIPMENT
B40: Excavators | D40: km | F40: =NA() ->  | G40: =IF(ISNA(F40),0,INDEX(IF(UPPER(RIGHT(F40,1))=Low,UnitCostLow, IF(UPPER(RIGHT(F40,1))=High,UnitCostHigh,UnitCostSpecified)),MATCH(UPPER(LEFT(F40,LEN(F40)-1)),CostCode,0))) -> 0 | H40: =G40*E40 -> 0
B41: Dump trucks | D41: km | F41: =NA() ->  | G41: =IF(ISNA(F41),0,INDEX(IF(UPPER(RIGHT(F41,1))=Low,UnitCostLow, IF(UPPER(RIGHT(F41,1))=High,UnitCostHigh,UnitCostSpecified)),MATCH(UPPER(LEFT(F41,LEN(F41)-1)),CostCode,0))) -> 0 | H41: 0
B42: Dozers | D42: km | F42: =NA() ->  | G42: 0 | H42: 0
B43: Demolition shears | D43: km | F43: =NA() ->  | G43: 0 | H43: 0
B44: Crane | D44: km | F44: =NA() ->  | G44: 0 | H44: 0
B45: Loader | D45: km | F45: =NA() ->  | G45: =IF(ISNA(F45),0,INDEX(IF(UPPER(RIGHT(F45,1))=Low,UnitCostLow, IF(UPPER(RIGHT(F45,1))=High,UnitCostHigh,UnitCostSpecified)),MATCH(UPPER(LEFT(F45,LEN(F45)-1)),CostCode,0))) -> 0 | H45: =G45*E45 -> 0
B46: Compactor | D46: each | F46: =NA() ->  | G46: =IF(ISNA(F46),0,INDEX(IF(UPPER(RIGHT(F46,1))=Low,UnitCostLow, IF(UPPER(RIGHT(F46,1))=High,UnitCostHigh,UnitCostSpecified)),MATCH(UPPER(LEFT(F46,LEN(F46)-1)),CostCode,0))) -> 0 | H46: =G46*E46 -> 0
B47: Light duty vehicles | D47: km | F47: =NA() ->  | G47: 0 | H47: 0
B48: Other | D48: km | F48: =NA() ->  | G48: 0 | H48: 0
B49: DEMOBILIZE CAMP
B50: Remaining camp facilities | D50: allow | F50: =NA() ->  | G50: =IF(ISNA(F50),0,INDEX(IF(UPPER(RIGHT(F50,1))=Low,UnitCostLow, IF(UPPER(RIGHT(F50,1))=High,UnitCostHigh,UnitCostSpecified)),MATCH(UPPER(LEFT(F50,LEN(F50)-1)),CostCode,0))) -> 0 | H50: =G50*E50 -> 0
B51: DEMOBILIZE WORKERS
B52: crew travel time | D52: mandays | F52: =NA() ->  | G52: =IF(ISNA(F52),0,INDEX(IF(UPPER(RIGHT(F52,1))=Low,UnitCostLow, IF(UPPER(RIGHT(F52,1))=High,UnitCostHigh,UnitCostSpecified)),MATCH(UPPER(LEFT(F52,LEN(F52)-1)),CostCode,0))) -> 0 | H52: =G52*E52 -> 0
B53: crew transportation | D53: each | F53: =NA() ->  | G53: =IF(ISNA(F53),0,INDEX(IF(UPPER(RIGHT(F53,1))=Low,UnitCostLow, IF(UPPER(RIGHT(F53,1))=High,UnitCostHigh,UnitCostSpecified)),MATCH(UPPER(LEFT(F53,LEN(F53)-1)),CostCode,0))) -> 0 | H53: =G53*E53 -> 0
B54: WINTER ROAD
B55: Construction and operation | D55: km | F55: =NA() ->  | G55: =IF(ISNA(F55),0,INDEX(IF(UPPER(RIGHT(F55,1))=Low,UnitCostLow, IF(UPPER(RIGHT(F55,1))=High,UnitCostHigh,UnitCostSpecified)),MATCH(UPPER(LEFT(F55,LEN(F55)-1)),CostCode,0))) -> 0 | H55: =G55*E55 -> 0
B56: Limited winter use | D56: km | F56: =NA() ->  | G56: =IF(ISNA(F56),0,INDEX(IF(UPPER(RIGHT(F56,1))=Low,UnitCostLow, IF(UPPER(RIGHT(F56,1))=High,UnitCostHigh,UnitCostSpecified)),MATCH(UPPER(LEFT(F56,LEN(F56)-1)),CostCode,0))) -> 0 | H56: =G56*E56 -> 0
B57: Winter road tarriff | D57: km | F57: =NA() ->  | G57: =IF(ISNA(F57),0,INDEX(IF(UPPER(RIGHT(F57,1))=Low,UnitCostLow, IF(UPPER(RIGHT(F57,1))=High,UnitCostHigh,UnitCostSpecified)),MATCH(UPPER(LEFT(F57,LEN(F57)-1)),CostCode,0))) -> 0 | H57: =G57*E57 -> 0
G58: Mobilization/Demobilization Cost | H58: =SUM(H4:H36)+0.0001 -> 0.0001

Sheet Unit_Costs
A1: Unit Cost Table (for refining unit costs see "Estimator" worksheet)
D2: Filter by unit
A4: ITEM | B4: Detail | D4: COST CODE | E4: UNITS | F4: LOW $ | G4: HIGH $ | H4: SPECIFIED $ | J4: COMMENTS
A6: Accomodation
D7: ACCM | E7: manday | F7: 100 | G7: 175
A8: Buildings - Decontaminate
B9: Asbestos | D9: BDA | E9: m2 | F9: 25.6 | G9: 51.2 | J9: Low: removal of asbestos siding & flooring; High: removal of insulated pipes, friable asbestos
A10: Buildings - Remove
B11: areas are per floor of 3 m average height
B12: Wood | D12: BRW | E12: m2 | F12: 27.5 | G12: 41
B13: Concrete | D13: BRC | E13: m2 | F13: 40 | G13: 65
B14: Steel - teardown | D14: BRS1 | E14: m2 | F14: 45 | G14: 65
B15: Steel - for salvage | D15: BRS2 | E15: m2 | F15: 67 | G15: 100
A16: Concrete work
B17: Small pour | D17: CSF | E17: m3 | F17: 426.5 | G17: 639.75 | J17: Low: YK; High=1.5xLow
B18: Large pour | D18: CLF | E18: m3 | F18: 353.5 | G18: 530.25 | H18: 2130 | J18: Specified: concrete crown pillar
A19: Contaminated Soils
B20: Remediate on site | D20: CSR | E20: m3 | F20: 47 | G20: 146
B21: Env. investigation Phase I/II | D21: CSEI | E21: each | F21: 25000 | J21: Low: small, "clean" site
A22: Dozing
B23: doze rock piles | D23: DR | E23: m3 | F23: 1.05 | G23: 2.4 | J23: Low cost: doze crest off dump
B24: doze overburden/soil piles | D24: DS | E24: m3 | F24: 0.95 | G24: 3.8 | J24: High cost: push up to 300 m
A25: Excavate Rock; Low Spec's and QA/QC
B26: drill/blast/load/short haul | D26: RB1 | E26: m3 | F26: 11.4 | G26: 17.05 | J26: Low:quarry operations for bulk fill
B27: drill/blast/load/long haul | D27: RB2 | E27: m3 | F27: 12.05 | G27: 17.8
B28: RB1 + spread and compact | D28: RB3 | E28: m3 | F28: 12.05 | G28: 17.8
B29: RB2 + spread and compact | D29: RB4 | E29: m3 | F29: 12.7 | G29: 30.75
B30: Specified activity | D30: RBS | E30: m3
A31: Excavate Rock; High Spec's and QA/QC | J31: (e.g. ditch/spillway excavation)
B32: drill/blast/load/short haul | D32: RC1 | E32: m3 | J32: Low:foundation excavation;High:spillway excavation
B33: drill/blast/load/long haul | D33: RC2 | E33: m3 | F33: 12.7 | G33: 18.4
B34: RC1 + spread and compact | D34: RC3 | E34: m3 | F34: 12.7 | G34: 18.4 | J34: e,g, cover construction
B35: RC2 + spread and compact | D35: RC4 | E35: m3 | F35: 13.5 | G35: 19.2 | J35: e,g, cover construction
B36: Specified activity | D36: RCS | E36: m3 | H36: 175 | J36: Specified-drift excavation
A37: Excavate Rip Rap
B38: drill/blast/load/short haul/place | D38: RR1 | E38: m3 | F38: 13.5 | G38: 17.75 | J38: High: quarry & place rip rap in channel
B39: drill/blast/load/long haul/place | D39: RR2 | E39: m3 | F39: 13.5 | G39: 20.65
B40: source is waste dump/short haul | D40: RR3 | E40: m3 | F40: 5.2 | G40: 7
B41: source is waste dump/long haul | D41: RR4 | E41: m3 | F41: 5.7 | G41: 7.6
B42: specified rip rap source | D42: RR5 | E42: m3
A43: Excavate Soil; Low Spec's and QA/QC
B44: clear & grub | D44: SBC | E44: m2 | F44: 3.4 | G44: 5
B45: excavate/load/short haul | D45: SB1 | E45: m3 | F45: 4.3 | G45: 5.9
B46: excavate/load/long haul | D46: SB2 | E46: m3 | F46: 4.3 | G46: 7.3
B47: SB1 + spread and compact | D47: SB3 | E47: m3 | F47: 4.5 | G47: 6.5 | J47: Low: non-engineered; High:engineered
B48: SB2 + spread and compact | D48: SB4 | E48: m3 | F48: 5.5 | G48: 11 | J48: Low: non-engineered; High:engineered
B49: Specified activity | D49: SBS | E49: m3 | F49: 3.2 | G49: 6 | J49: Low: rehandle waste rock dump by dozing; High:rehandle waste rock by hauling
B50: Tailings | D50: SBT | E50: m3 | F50: 1.35 | G50: 3.7 | H50: 15.5 | J50: Low:doze frost heaves; High:contour surface - wet or frozen; Specified:haul/place wet infill
A51: Excavate Soil, High Spec's and QA/QC
B52: excavate/load/short haul | D52: SC1 | E52: m3 | F52: 6.8 | G52: 9.3
B53: excavate/load/long haul | D53: SC2 | E53: m3 | F53: 7.1 | G53: 11.75
B54: SC1 + spread and compact | D54: SC3 | E54: m3 | F54: 8.5 | G54: 14.2 | J54: Low: non-engineered; High:engineered
B55: SC2 + spread and compact | D55: SC4 | E55: m3 | F55: 8.9 | G55: 23.2 | J55: Low: non-engineered; High:engineered (e.g. complex covers, low volume dam construction)
B56: Specified activity | D56: SCS | E56: m3 | H56: 18.8 | J56: Backfill adit with waste rock
A57: Fence
D58: FNC | E58: m | F58: 13.55 | G58: 203
A59: Fuel and Electricity
B60: Fuel operating cost automative | D60: FOA | E60: litre | F60: 1.05
B61: Fuel operating cost non-automative | D61: FONA | E61: litre | F61: 0.99 | G61: 1.31
B62: Fuel mobilization | D62: FM | E62: litre | F62: 0.22 | G62: 0.42 | J62: High: winter road usage
B63: Electricity | D63: FE | E63: kW-h | F63: 0.17 | G63: 0.19 | H63: 0.49 | J63: Low and High:Yellowknife; Specified:diesel generator
A64: Geo-Synthetics
B65: geotextile | D65: GST | E65: m2 | F65: 3.44 | J65: Supply and install
B66: geogrid | D66: GSG | E66: m2 | F66: 5.75
B67: liner, HDPE | D67: GSHDPE | E67: m2 | F67: 7.95 | J67: Supply and install; large quantity
B68: liner, ES3 | D68: GSES3 | E68: m2 | F68: 20.2 | J68: FOB Yellowknife
B69: geosynthetic installation | D69: GSI | E69: m2 | F69: 3.16 | G69: 14 | J69: Low:geotextile; High:ES3 or HDPE
B70: bentonite soil ammendment | D70: GSBA | E70: tonne | F70: 308.3 | G70: 348.5 | J70: FOB Edmonton, add shipping & mixing
A71: Grouting (/m3 of rock grouted)
D72: grout | E72: m3 | F72: 236.55 | G72: 286.75 | J72: High: cement, FOB Yellowknife
A73: Labour & Equipment Rates
B74: Manager | D74: Sman | E74: $/hr | F74: 125
B75: Superintendant | E75: $/hr | F75: 103.54
B76: Registered engineer | D76: Eng | E76: $/hr | F76: 220
B77: Environmental coordinator | D77: Envco | E77: $/hr | F77: 74.16
B78: Electrician | D78: Elec | E78: $/hr | F78: 74
B79: Journeyman - various | D79: Jour | E79: $/hr | F79: 71.79
B80: Labour - skilled | D80: Lab-s | E80: $/hr | F80: 49.6
B81: Labour - unskilled | D81: Lab-us | E81: $/hr | F81: 43.98 | G81: 50
B82: Equipment operator | D82: oper | E82: $/hr | F82: 65 | G82: 80
B83: Heavy duty mechanic | D83: mech | E83: $/hr | F83: 72.85
B84: Water treatment plant operator | D84: oper-wt | E84: $/hr | F84: 59.86
B85: Security / first aid | D85: safety | E85: $/hr | F85: 66.97
B86: Administative staff | D86: admin | E86: $/hr | F86: 57.89
B88: Equipment rates include operator and fuel unless specified
B89: Loader - 4 cu.yd (3.06m3) | D89: load-s | E89: $/hr | F89: 175
B90: Loader - 7 cu.yd (5.35m3) | D90: load-l | E90: $/hr | F90: 315
B91: Excavator - 26.76-30.84 tonnes | D91: exc-s | E91: $/hr | F91: 190
B92: Excavator - 68.95+tonnes | D92: exc-l | E92: $/hr | F92: 420
B93: Grader | D93: grad | E93: $/hr | F93: 190
B94: Dump truck off hwy 30-50 tonnes | D94: truck-s | E94: $/hr | F94: 225
B95: Dump truck off hwy 55-75 tonnes | D95: truck-l | E95: $/hr | F95: 300
B96: dozer, small | D96: dozers | E96: $/hr | F96: 205 | G96: 260
B97: dozer, large | D97: dozerl | E97: $/hr | F97: 490 | G97: 565
B98: smooth drum compactor | D98: comp | E98: $/hr | F98: 155
B99: scooptram, 6 yd3 bucket | D99: scoop | E99: $/hr | F99: 170
B100: flat bed truck with hiab | D100: hiab | E100: $/hr | F100: 155
B101: fuel truck | D101: ftruck | E101: $/hr | F101: 150
B102: water truck | D102: wtruck | E102: $/hr | F102: 150
A103: Mobilize Heavy Equipment
B104: Road access | D104: MHER | E104: kmtonne | F104: 3.4 | G104: 10.25
B105: Air access | D105: MHEA | E105: kmtonne | F105: 12 | J105: cargo rate>500lb
A106: Mobilize Camp
B107: Road access | D107: MCR | E107: each | F107: 50000 | J107: refurbish existing camp
A108: Mobilize Workers
B109: flight | D109: MW | E109: each | F109: 4500 | G109: 9100 | J109: Low:e.g. 8 passenger; High: Dash 7
A110: Oil Removal
B111: oil removal | D111: OR | E111: litre | F111: 0.43 | G111: 1.2 | J111: Low:waste oil heater; High: ship offsite
A112: PCB Removal
B113: Remove from site | D113: PCBR | E113: litre | F113: 40.2 | G113: 46.9 | J113: Low: shipping, handling & disposal from Yellowknife
A114: Pipes, small (<6in dia.)
B115: remove/dispose on site | D115: PSR | E115: m | F115: 1 | G115: 24 | J115: Low: remove/dispose on site; High: remove/re-use
B116: supply | D116: PSS | E116: m | F116: 6.1 | G116: 11.1 | J116: Low:supply; High:supply and ship
B117: install | D117: PSI | E117: m | F117: 25
A118: Pipes, large (>6in dia.)
B119: remove/dispose on site | D119: PLR | E119: m | F119: 22 | G119: 72 | J119: Low: remove/dispose on site; High: remove/re-use
B120: supply | D120: PLS | E120: m | F120: 129 | G120: 143 | J120: Low:supply; High:supply and ship
B121: install | D121: PLI | E121: m | F121: 50
A122: Power Lines
B123: remove/dispose on site | D123: POWR | E123: each | F123: 25.5
A124: Process Chemicals
B125: Remove from site | D125: PCR | E125: kg | F125: 0.45 | G125: 2.5
A126: Pumps
B127: Pump capital cost | D127: PCR | E127: each | F127: 195000
B128: Pump shipping | D128: PS | E128: each | F128: 2500
B129: Pump maintenance | D129: PM | E129: each | F129: 20000
A130: Pump sand BackFill
D131: BF | E131: m3 | F131: 85 | G131: 300
A132: Scarify - road/mine site
D133: SCFY | E133: ha | F133: 4300 | G133: 6030 | H133: 2150
A134: Shaft, Raise & Portal Closures
B135: Shaft & Raises | D135: SR | E135: m2 | F135: 645 | G135: 2132 | J135: Low:pre-cast concrete slabs, little site prep. Area=shaft+>1m all around
B136: Portals | D136: POR | E136: m3 | F136: 18.8 | G136: 250 | H136: 1200 | J136: Low:unit cost code SCS;High:excavate & backfill collapsed portal;Spec: installed pressure plug
A137: Site Inspection Report
D138: RPT | E138: each | F138: 10000 | G138: 20000
A139: SpillWay - Clear
D140: CSW | E140: each | F140: 3000 | G140: 7000
A141: Survey/Instrumentation
D142: SI | E142: each | F142: 1800 | G142: 3600 | J142: 2 person crew
A143: Treatment Plant - Construct
B144: Small (< 1000 m3/d) | D144: BTPS | E144: lump sum | F144: 1218600 | G144: 2437300
B145: Large (> 1000 m3/d) | D145: BTPL | E145: lump sum | F145: 2437300 | G145: 42650200
A146: Treatment Plant - Operate
D147: OTP | E147: m3 | F147: 0.35 | G147: 2
A148: Vegetation
B149: Hydroseed, Flat | D149: VHF | E149: ha | F149: 4000
B150: Hydroseed, Sloped | D150: VHS | E150: ha | F150: 6000
B151: veg. Blanket/erosion mat | D151: VB | E151: ha
B152: Tree planting | D152: VT | E152: ha
B153: Wetland species | D153: VW | E153: ha | F153: 50000 | H153: 47.72 | J153: Specified= /m3, Wetland Growth Media Substrate mixed and installed (sand-local, biochar and fertilizer, woodchips-local)
A154: Water Sampling/Analysis/Reporting
D155: WS | E155: each | F155: 7000 | G155: 10000
A156: Water Treatment Chemicals
B157: ferric sulphate | D157: ferric | E157: kg | F157: 1.19
B158: ferrous sulphate | D158: ferrous | E158: kg | F158: 1.32
B159: lime | D159: lime | E159: kg | F159: 0.51
B160: hydrogen peroxide, 35% | D160: hperox | E160: kg | F160: 1.5
B161: Sodium Metabisulfate | D161: Nametab | E161: kg | F161: 1.18
B162: Caustic soda, 50% | D162: caustic | E162: kg | F162: 0.74
B163: Sulfuric acid, 93% | D163: sulfuric | E163: kg | F163: 0.31
B164: flocculant | D164: flocc | E164: kg | F164: 6
B165: copper sulphate | D165: copper | E165: kg
B166: shipping | D166: shipping | E166: kg | F166: 0.2
A167: Winter Road
B168: Construction | D168: WRC | E168: km | F168: 2000 | G168: 11500
B169: Usage | D169: WRU | E169: kmtonne | F169: 0.29
A171: Well Abandonment
B172: All wells - Drilled / Cased | E172: m | H172: 12500 | J172: -
B173: Sweet Well - Completed / Active / Inactive | E173: m | H173: 56600 | J173: 0 - 1000 m
E174: m | H174: 71200 | J174: 1000 - 2000 m
E175: m | H175: 88000 | J175: 2000 - 3000 m
E176: m | H176: 104900 | J176: >3000 m
B177: Sour Well (H2S > 1%) - Completed / Active / Inactive | E177: m | H177: 74700 | J177: 0 - 1000 m
E178: m | H178: 94400 | J178: 1000 - 2000 m
E179: m | H179: 116500 | J179: 2000 - 3000 m
E180: m | H180: 138600 | J180: >3000 m
B181: Source Water Well | E181: m | H181: 5000 | J181: 0 - 150 m
E182: m | H182: 10000 | J182: 151 - 300 m
E183: m | H183: 30000 | J183: >300 m
B184: Vent Flow / Gas Migration | H184: 87200 | J184: -
B185: Additional Completion Zones | H185: Add 30% per zone | J185: -
A186: Facility Abandonment
B187: Oil / bitumen processing or injection / disposal facility | E187: m3/day | H187: 50000 | J187: 0 - 50 m3/d
E188: m3/day | H188: 100000 | J188: >50 m3 < 500 m3/d
E189: m3/day | H189: 200000 | J189: >50 m3 < 3000 m3/d
E190: m3/day | H190: 400000 | J190: >3000 m3/d
B191: Gas processing facility | E191: m3/day | H191: 192900 | J191: 0 - 999 e3m3/d
E192: m3/day | H192: 372200 | J192: 1000 - 2999 e3m3/d
E193: m3/day | H193: 500700 | J193: 3000 - 4999 e3m3/d
E194: m3/day | H194: 638700 | J194: >5000 e3m3/d
B195: Gas dehydration facility | E195: m3/day | H195: 53000 | J195: 0 - 299 e3m3/d
E196: m3/day | H196: 132500 | J196: 300 - 1499 e3m3/d
E197: m3/day | H197: 238700 | J197: >1500 e3m3/d
B198: Compressor stations | E198: KW | H198: 46600 | J198: 0 - 599 KW
E199: KW | H199: 113600 | J199: 600 - 2999 KW
E200: KW | H200: 210500 | J200: >3000 KW
B201: Battery sites | E201: m3/day | H201: 46600 | J201: 0 - 49 m3/d
E202: m3/day | H202: 136400 | J202: 50 - 499 m3/d
E203: m3/day | H203: 244300 | J203: 500 - 1500 m3/d
E204: m3/day | H204: 353100 | J204: >1500 m3/d
... 9 more rows

Sheet Estimator
B1: Unit Cost Estimator | D1: 1 | E1: Equipment Productivity Figures and Graphs have been reproduced from Caterpillar Performance Handbook - Edition 32
B2: EXCAVATION | G2: HAUL AND DUMPING | L2: SPREADING/DOZING
B3: Productivity | G3: Productivity | L3: Productivity
B4: Machine | C4: Cat 345 B | G4: Machine | H4: 769 rock truck | L4: Machine | M4: Cat D8
B5: bucket capacity | D5: 2.4 | E5: m3 | G5: truck capacity | I5: 24 | J5: m3 | L5: Estimate production using example curves provided or | N5: 600 | O5: m3/hr
B6: fill factor | D6: 0.75 | E6: % | G6: fill factor | I6: 0.8 | J6: % | L6: equivalent from other supplier
B7: cycle time | D7: 45 | E7: seconds | L7: Correction factors (see table provided)
B8: operator skill | D8: 0.8 | E8: % | G8: load time | I8: 6 | J8: min. | L8: operator skill | N8: 0.75
B9: machine availability | D9: 0.83 | E9: % | G9: haul distance | I9: 1.5 | J9: km | L9: material type, see table | N9: 0.8
B10: altitude adjustment | D10: 1 | E10: % | G10: average velocity | I10: 20 | J10: km/hr | L10: slot dozing | N10: 1
B11: Hourly productivity | D11: =D5*D6*(60*60/D7)*D8*D9*D10 -> 95.616 | E11: m3/hr | G11: haul time + return time | I11: =+I9/I10*60*2 -> 9 | J11: min. | L11: side by side dozing | N11: 1
G12: wait time | I12: 0.5 | J12: min. | L12: visibility | N12: 1
G13: dump time | I13: 1 | J13: min. | L13: job efficiency | N13: 0.83
G14: cycle time | I14: =I8+SUM(I11:I13) -> 16.5 | J14: min. | L14: altitude adjustment | N14: 1
G15: machine availability | I15: 0.83 | J15: % | L15: slope adjustment | N15: 1
G16: altitude adjustment | I16: 1 | J16: % | L16: Hourly productivity | N16: =+N5*N8*N9*N10*N11*N12*N13*N14*N15 -> 298.8 | O16: m3/hr
I17: =I14*I15*I16 -> 13.695 | J17: ave. min/cycle
G18: Hourly productivity | I18: =I5*I6*60/I17 -> 84.11829135 | J18: m3/hr
B19: Operating Costs | G19: Operating Costs | L19: Operating Costs
B20: - Contractor | G20: - Contractor | L20: - Contractor
B21: Contractor hourly rate | D21: 150 | E21: $/hr | G21: Contractor hourly rate | I21: 140 | J21: $/hr | L21: Hourly rate - contractor supplied | N21: 190 | O21: $/hr
B22: Excavation cost - contractor rate | D22: =D21/D11 -> 1.5687751 | E22: $/m3 | G22: Haul and Dump - contractor rate | I22: =I21/I18 -> 1.664322917 | J22: $/m3 | L22: Dozing - contractor rate | N22: =N21/N16 -> 0.6358768407 | O22: $/m3
B24: - Owner | G24: - Owner | L24: - Owner
B25: ownership, daily | E25: $/day | G25: ownership, daily | J25: $/day | L25: ownership, daily | O25: $/day
B26: maintenance | E26: $/hr | G26: maintenance | J26: $/hr | L26: maintenance | O26: $/hr
B27: fuel | E27: $/hr | G27: fuel | J27: $/hr | L27: fuel | O27: $/hr
B28: consumables (cutters, tires) | E28: $/hr | G28: consumables (cutters, tires) | J28: $/hr | L28: consumables (cutters, tires) | O28: $/hr
B29: operator | E29: $/hr | G29: operator | J29: $/hr | L29: operator | O29: $/hr
B30: Owner hourly rate | D30: =D25/10+SUM(D26:D29) -> 0 | E30: $/hr | G30: Owner hourly rate | I30: =I25/10+SUM(I26:I29) -> 0 | J30: $/hr | L30: Owner hourly rate | N30: =N25/10+SUM(N26:N29) -> 0
B31: Excavation cost - owner rate | D31: =D30/D11 -> 0 | E31: $/m3 | G31: Haul/Dumping Cost - owner rate | I31: =I30/I18 -> 0 | J31: $/m3 | L31: Spreading/Dozing Cost - owner rate | N31: =N30/N16 -> 0 | O31: $/hr
B32: Excavation cost - select contractor or owner rate (D22 or D31) | E32: $/m3 | G32: Haul/Dumping Cost - select contractor or owner rate (I22 or I31 | J32: $/m3 | L32: Spreading/Dozing Cost - select contractor or owner rate (N22 or N31) | O32: $/m3
B36: Excavator | G36: Trucking | L36: Dozing
C37: Cat 320 | D37: Cat 325B | E37: Cat 375 | H37: Cat 771 D | I37: Cat 777D | J37: Cat 789C
B38: heaped bucket capacity, m3 | C38: 1.5 | D38: 2.2 | E38: 5.4 | G38: Truck capacity - heaped, m3 | H38: 27.5 | I38: 60.5 | J38: 137
D39: Typical Cycle Times (seconds)
B40: easy digging, shallow digging, small swing angle | C40: 16 | D40: 18 | E40: 20
B41: med. to hard digging, rocky soil, swing angle to 90 deg. | C41: 23 | D41: 23 | E41: 25
B42: tough digging, sandstone, caliche, at max. machine depth, swing angle > 120 deg. | C42: 27 | D42: 29 | E42: 35
B44: Material | C44: Fill Factor (% of heaped bucket capacity
B45: Moist loam or sandy clay | D45: 100 - 110
B46: sand and gravel (not till) | D46: 95 - 110
B47: hard tough clay | D47: 80 - 90
B48: rock - will blasted | D48: 60 - 75
B49: rock - poorly blasted | D49: 40 -60
B51: Operator Skill | C51: poor | D51: average | E51: good
B52: Correction factor | C52: 0.6 | D52: 0.75 | E52: 1
B54: Machine availability | C54: poor | D54: average | E54: good
B55: Correction factor | C55: 0.9 | D55: 0.95 | E55: 1

Sheet Tools
A1: The functions in this worksheet serve as a back up in the event that the menu item "Add-Ins" is not shown in Excel menu bar
C4: Save file before clearing all data
L6: These functions duplicate components within worksheet
C9: Shows both active worksheet as well as table of Unit Costs in a separate window
C12: Prints all worksheets having non-zero sums
